Workbook

Sheet Summary
A3: Paragon Mortgages (No.13) PLC
A5: Information as at the Principal Determination Date | B5: 2006-12-31 | C5: 2007-03-31 | D5: 2007-06-29 | E5: 2007-09-28 | F5: 2007-12-31 | G5: 2008-03-31 | H5: 2008-06-30 | I5: 2008-09-30 | J5: 2008-12-31 | K5: 2009-03-31 | L5: 2009-06-30 | M5: 2009-09-30 | N5: 2009-12-31 | O5: 2010-03-31 | P5: 2010-06-30 | Q5: 2010-09-30 | R5: 2010-12-31 | S5: 2011-03-31 | T5: 2011-06-30 | U5: 2011-09-30 | V5: 2011-12-30 | W5: 2012-03-30 | X5: 2012-06-29 | Y5: 2012-09-28 | Z5: 2012-12-31 | AA5: 2013-03-28 | AB5: 2013-06-28 | AC5: 2013-09-30 | AD5: 2013-12-31 | AE5: 2014-03-31 | AF5: 2014-06-30 | AG5: 2014-09-30 | AH5: 2014-12-31 | AI5: 2015-03-31 | AJ5: 2015-06-30 | AK5: 2015-09-30 | AL5: 2015-12-31 | AM5: 2016-03-31 | AN5: 2016-06-30 | AO5: 2016-09-30 | AP5: 2016-12-30 | AQ5: 2017-03-31 | AR5: 2017-06-30 | AS5: 2017-09-29 | AT5: 2017-12-29 | AU5: 2018-03-29 | AV5: 2018-06-29 | AW5: 2018-09-28 | AX5: 2018-12-31 | AY5: 2019-03-29 | AZ5: 2019-06-28 | BA5: 2019-09-30 | BB5: 2019-12-31 | BC5: 2020-03-31 | BD5: 2020-06-30 | BE5: 2020-09-30 | BF5: 2020-12-31 | BG5: 2021-03-31
A6: Mortgage Asset Balance | B6: 1480042 | C6: 1449294 | D6: 1422788 | E6: 1385001 | F6: 1346973 | G6: 1301128 | H6: 1238741 | I6: 1190669 | J6: 1097553 | K6: 1080660 | L6: 1074271 | M6: 1067650 | N6: 1060170 | O6: 1052638 | P6: 1044510 | Q6: 1038571 | R6: 1032629 | S6: 1027547 | T6: 1019575 | U6: 1013566 | V6: 1008791 | W6: 1001553 | X6: 998828 | Y6: 990698 | Z6: 984974 | AA6: 980140 | AB6: 974637 | AC6: 970592 | AD6: 962767 | AE6: 955622 | AF6: 947142 | AG6: 936949.9479 | AH6: 926785.9017 | AI6: 918281.1125 | AJ6: 905252.3773 | AK6: 894201.3644 | AL6: 884715.0044 | AM6: 866019.7716 | AN6: 855454.3638 | AO6: 839785.3512 | AP6: 826935.2435 | AQ6: 813099.7965 | AR6: 800232.0212 | AS6: 791040.9802 | AT6: 782018.6492 | AU6: 770981.4583 | AV6: 761748.0784 | AW6: 750042.0161 | AX6: 733723.0436 | AY6: 723285.2613 | AZ6: 711805.0035 | BA6: 697772.7235 | BB6: 685941.7489 | BC6: 674885.5578 | BD6: 667996.878 | BE6: 658717.3158 | BF6: 648904.1128 | BG6: 0
A7: Total Notes | B7: =SUM(B8:B15) -> 1480042 | C7: =SUM(C8:C15) -> 1449294 | D7: =SUM(D8:D15)-1 -> 1422788 | E7: =SUM(E8:E15)-1 -> 1385001 | F7: =SUM(F8:F15)-1 -> 1346973 | G7: =SUM(G8:G15) -> 1301128 | H7: =SUM(H8:H15)+1 -> 1238741 | I7: =SUM(I8:I15) -> 1190669 | J7: =SUM(J8:J15)+1 -> 1097553 | K7: =SUM(K8:K15) -> 1080660 | L7: =SUM(L8:L15)-1 -> 1074271 | M7: =SUM(M8:M15) -> 1067650 | N7: =SUM(N8:N15) -> 1060170 | O7: =SUM(O8:O15) -> 1052638 | P7: =SUM(P8:P15) -> 1044510 | Q7: =SUM(Q8:Q15)+1 -> 1038571 | R7: =SUM(R8:R15)-1 -> 1032629 | S7: =SUM(S8:S15) -> 1027547 | T7: =SUM(T8:T15) -> 1019575 | U7: =SUM(U8:U15) -> 1013566 | V7: =SUM(V8:V15)+1 -> 1008791 | W7: =SUM(W8:W15) -> 1001553 | X7: =SUM(X8:X15)+1 -> 998828 | Y7: =SUM(Y8:Y15) -> 990698 | Z7: =SUM(Z8:Z15)+1 -> 984794 | AA7: =SUM(AA8:AA15) -> 980140 | AB7: 974637 | AC7: 970592 | AD7: 962767 | AE7: 955622 | AF7: 947142 | AG7: =SUM(AG8:AG15)+1 -> 936950 | AH7: =SUM(AH8:AH15)+1 -> 926786 | AI7: =SUM(AI8:AI15)+1 -> 918281 | AJ7: =SUM(AJ8:AJ15)-1 -> 905252 | AK7: =SUM(AK8:AK15)+1 -> 894201 | AL7: =SUM(AL8:AL15)+2 -> 884715 | AM7: =SUM(AM8:AM15)+1 -> 866020 | AN7: =SUM(AN8:AN15) -> 855454 | AO7: =SUM(AO8:AO15) -> 839785 | AP7: =SUM(AP8:AP15)-1 -> 826935 | AQ7: =SUM(AQ8:AQ15)+1 -> 813100 | AR7: =SUM(AR8:AR15)+1 -> 800232 | AS7: =SUM(AS8:AS15) -> 791041 | AT7: =SUM(AT8:AT15)+1 -> 782019 | AU7: =SUM(AU8:AU15) -> 770981 | AV7: 761748 | AW7: 750042 | AX7: 733723 | AY7: 723285 | AZ7: =SUM(AZ8:AZ15)-1 -> 711805 | BA7: =SUM(BA8:BA15)+2 -> 697773 | BB7: =SUM(BB8:BB15) -> 685942 | BC7: =SUM(BC8:BC15) -> 674886 | BD7: =SUM(BD8:BD15)+1 -> 667997 | BE7: =SUM(BE8:BE15) -> 658717 | BF7: =SUM(BF8:BF15) -> 648904 | BG7: =SUM(BG8:BG15) -> 0
A8: Class A1 Notes | B8: 785698 | C8: 767119 | D8: 751103 | E8: 728270 | F8: 705292 | G8: 677590 | H8: 639893 | I8: 610846 | J8: 554581 | K8: 544374 | L8: 540514 | M8: 536513 | N8: 531993 | O8: 527442 | P8: 522531 | Q8: 518942 | R8: 515352 | S8: 512281 | T8: 507464 | U8: 503833 | V8: 500947 | W8: 496574 | X8: 494927 | Y8: 490015 | Z8: 486448 | AA8: 483636 | AB8: 480311 | AC8: 477866 | AD8: 473138 | AE8: 468821 | AF8: 463697 | AG8: 457538 | AH8: 451396 | AI8: 446257 | AJ8: 438385 | AK8: 431707 | AL8: 425975 | AM8: 414679 | AN8: 408295 | AO8: 398827 | AP8: 391063 | AQ8: 382702 | AR8: 374927 | AS8: 369374 | AT8: 363922 | AU8: 357253 | AV8: 351674 | AW8: 344600 | AX8: 334740 | AY8: 332149 | AZ8: 326877 | BA8: 320433 | BB8: 315000 | BC8: 309923 | BD8: 306759 | BE8: 302498 | BF8: 297991 | BG8: 0
A9: Class A2a Notes | B9: 123093 | C9: 120182 | D9: 117673 | E9: 114096 | F9: 110496 | G9: 106156 | H9: 100250 | I9: 95699 | J9: 86885 | K9: 85285 | L9: 84681 | M9: 84054 | N9: 83346 | O9: 82633 | P9: 81863 | Q9: 81301 | R9: 80739 | S9: 80258 | T9: 79503 | U9: 78934 | V9: 78482 | W9: 77797 | X9: 77539 | Y9: 76769 | Z9: 76210 | AA9: 75770 | AB9: 75249 | AC9: 74866 | AD9: 74125 | AE9: 73449 | AF9: 72646 | AG9: 71681 | AH9: 70719 | AI9: 69914 | AJ9: 68681 | AK9: 67634 | AL9: 66736 | AM9: 64967 | AN9: 63966 | AO9: 62483 | AP9: 61267 | AQ9: 59957 | AR9: 58739 | AS9: 57869 | AT9: 57015 | AU9: 55970 | AV9: 55096 | AW9: 53988 | AX9: 52443 | AY9: 52037 | AZ9: 51211 | BA9: 50201 | BB9: 49350 | BC9: 48555 | BD9: 48059 | BE9: 47392 | BF9: 46686 | BG9: 0
A10: Class A2b Notes | B10: 208183 | C10: 203260 | D10: 199017 | E10: 192967 | F10: 186879 | G10: 179539 | H10: 169550 | I10: 161854 | J10: 146945 | K10: 144241 | L10: 143218 | M10: 142158 | N10: 140960 | O10: 139754 | P10: 138453 | Q10: 137502 | R10: 136551 | S10: 135737 | T10: 134461 | U10: 133499 | V10: 132734 | W10: 131576 | X10: 131139 | Y10: 129838 | Z10: 128892 | AA10: 128147 | AB10: 127266 | AC10: 126619 | AD10: 125366 | AE10: 124222 | AF10: 122864 | AG10: 121232 | AH10: 119605 | AI10: 118243 | AJ10: 116158 | AK10: 114388 | AL10: 112869 | AM10: 109876 | AN10: 108185 | AO10: 105676 | AP10: 103619 | AQ10: 101404 | AR10: 99343 | AS10: 97872 | AT10: 96427 | AU10: 94660 | AV10: 93182 | AW10: 91308 | AX10: 88695 | AY10: 88009 | AZ10: 86612 | BA10: 84904 | BB10: 83465 | BC10: 82119 | BD10: 81281 | BE10: 80152 | BF10: 78958 | BG10: 0
A11: Class A2c Notes | B11: 183329 | C11: 178994 | D11: 175257 | E11: 169930 | F11: 164568 | G11: 158104 | H11: 149308 | I11: 142531 | J11: 129402 | K11: 127021 | L11: 126120 | M11: 125186 | N11: 124132 | O11: 123070 | P11: 121924 | Q11: 121086 | R11: 120249 | S11: 119532 | T11: 118408 | U11: 117561 | V11: 116888 | W11: 115867 | X11: 115483 | Y11: 114337 | Z11: 113504 | AA11: 112848 | AB11: 112072 | AC11: 111502 | AD11: 110399 | AE11: 109391 | AF11: 108196 | AG11: 106759 | AH11: 105326 | AI11: 104127 | AJ11: 102290 | AK11: 100732 | AL11: 99394 | AM11: 96758 | AN11: 95269 | AO11: 93060 | AP11: 91248 | AQ11: 89297 | AR11: 87483 | AS11: 86187 | AT11: 84915 | AU11: 83359 | AV11: 82057 | AW11: 80407 | AX11: 78106 | AY11: 77501 | AZ11: 76271 | BA11: 74767 | BB11: 73500 | BC11: 72315 | BD11: 71577 | BE11: 70583 | BF11: 69531 | BG11: 0
A12: Class B1a Notes | B12: 56000 | C12: 56000 | D12: 56000 | E12: 56000 | F12: 56000 | G12: 56000 | H12: 56000 | I12: 56000 | J12: 56000 | K12: 56000 | L12: 56000 | M12: 56000 | N12: 56000 | O12: 56000 | P12: 56000 | Q12: 56000 | R12: 56000 | S12: 56000 | T12: 56000 | U12: 56000 | V12: 56000 | W12: 56000 | X12: 56000 | Y12: 56000 | Z12: 56000 | AA12: 56000 | AB12: 56000 | AC12: 56000 | AD12: 56000 | AE12: 56000 | AF12: 56000 | AG12: 56000 | AH12: 56000 | AI12: 56000 | AJ12: 56000 | AK12: 56000 | AL12: 56000 | AM12: 56000 | AN12: 56000 | AO12: 56000 | AP12: 56000 | AQ12: 56000 | AR12: 56000 | AS12: 56000 | AT12: 56000 | AU12: 56000 | AV12: 56000 | AW12: 56000 | AX12: 56000 | AY12: 54084 | AZ12: 53226 | BA12: 52176 | BB12: 51292 | BC12: 50465 | BD12: 49950 | BE12: 49256 | BF12: 48522 | BG12: 0
A13: Class B1b Notes | B13: 56376 | C13: 56376 | D13: 56376 | E13: 56376 | F13: 56376 | G13: 56376 | H13: 56376 | I13: 56376 | J13: 56376 | K13: 56376 | L13: 56376 | M13: 56376 | N13: 56376 | O13: 56376 | P13: 56376 | Q13: 56376 | R13: 56376 | S13: 56376 | T13: 56376 | U13: 56376 | V13: 56376 | W13: 56376 | X13: 56376 | Y13: 56376 | Z13: 56376 | AA13: 56376 | AB13: 56376 | AC13: 56376 | AD13: 56376 | AE13: 56376 | AF13: 56376 | AG13: 56376 | AH13: 56376 | AI13: 56376 | AJ13: 56376 | AK13: 56376 | AL13: 56376 | AM13: 56376 | AN13: 56376 | AO13: 56376 | AP13: 56376 | AQ13: 56376 | AR13: 56376 | AS13: 56376 | AT13: 56376 | AU13: 56376 | AV13: 56376 | AW13: 56376 | AX13: 56376 | AY13: 54447 | AZ13: 53583 | BA13: 52527 | BB13: 51636 | BC13: 50804 | BD13: 50285 | BE13: 49587 | BF13: 48848 | BG13: 0
A14: Class Cla Notes | B14: 13000 | C14: 13000 | D14: 13000 | E14: 13000 | F14: 13000 | G14: 13000 | H14: 13000 | I14: 13000 | J14: 13000 | K14: 13000 | L14: 13000 | M14: 13000 | N14: 13000 | O14: 13000 | P14: 13000 | Q14: 13000 | R14: 13000 | S14: 13000 | T14: 13000 | U14: 13000 | V14: 13000 | W14: 13000 | X14: 13000 | Y14: 13000 | Z14: 13000 | AA14: 13000 | AB14: 13000 | AC14: 13000 | AD14: 13000 | AE14: 13000 | AF14: 13000 | AG14: 13000 | AH14: 13000 | AI14: 13000 | AJ14: 13000 | AK14: 13000 | AL14: 13000 | AM14: 13000 | AN14: 13000 | AO14: 13000 | AP14: 13000 | AQ14: 13000 | AR14: 13000 | AS14: 13000 | AT14: 13000 | AU14: 13000 | AV14: 13000 | AW14: 13000 | AX14: 13000 | AY14: 12555 | AZ14: 12356 | BA14: 12112 | BB14: 11907 | BC14: 11715 | BD14: 11595 | BE14: 11434 | BF14: 11264 | BG14: 0
A15: Class C1b Notes | B15: 54363 | C15: 54363 | D15: 54363 | E15: 54363 | F15: 54363 | G15: 54363 | H15: 54363 | I15: 54363 | J15: 54363 | K15: 54363 | L15: 54363 | M15: 54363 | N15: 54363 | O15: 54363 | P15: 54363 | Q15: 54363 | R15: 54363 | S15: 54363 | T15: 54363 | U15: 54363 | V15: 54363 | W15: 54363 | X15: 54363 | Y15: 54363 | Z15: 54363 | AA15: 54363 | AB15: 54363 | AC15: 54363 | AD15: 54363 | AE15: 54363 | AF15: 54363 | AG15: 54363 | AH15: 54363 | AI15: 54363 | AJ15: 54363 | AK15: 54363 | AL15: 54363 | AM15: 54363 | AN15: 54363 | AO15: 54363 | AP15: 54363 | AQ15: 54363 | AR15: 54363 | AS15: 54363 | AT15: 54363 | AU15: 54363 | AV15: 54363 | AW15: 54363 | AX15: 54363 | AY15: 52503 | AZ15: 51670 | BA15: 50651 | BB15: 49792 | BC15: 48990 | BD15: 48490 | BE15: 47815 | BF15: 47104 | BG15: 0
A16: Class B and C Notes as a % of the Total Notes | B16: =SUM(B12:B15)/B7 -> 0.1214418239 | C16: 0.1240183151 | D16: 0.1263287292 | E16: 0.1297753576 | F16: 0.1334392003 | G16: 0.1381409054 | H16: 0.1450981279 | I16: 0.1509563111 | J16: 0.16376339 | K16: 0.1663233579 | L16: 0.167312531 | M16: 0.1683501147 | N16: 0.1695379043 | O16: 0.1707510084 | P16: 0.1720797312 | Q16: 0.1730637578 | R16: 0.174059609 | S16: 0.1749204659 | T16: 0.1762881593 | U16: 0.1773332965 | V16: =SUM(V12:V15)/V7 -> 0.1781726839 | W16: 0.1794602982 | X16: 0.1799499013 | Y16: 0.1814266305 | Z16: 0.1825143126 | AA16: 0.1833809456 | AB16: =SUM(AB12:AB15)/AB7 -> 0.1844163519 | AC16: 0.1851849181 | AD16: 0.1866900299 | AE16: 0.188085875 | AF16: 0.189769855 | AG16: 0.1918341427 | AH16: =SUM(AH12:AH15)/AH7 -> 0.1939379749 | AI16: 0.1957342034 | AJ16: =SUM(AJ12:AJ15)/AJ7 -> 0.1985513426 | AK16: 0.2010051431 | AL16: =SUM(AL12:AL15)/AL7 -> 0.2031603398 | AM16: 0.2075460151 | AN16: =SUM(AN12:AN15)/AN7 -> 0.2101094857 | AO16: 0.2140297814 | AP16: =SUM(AP12:AP15)/AP7 -> 0.2173556567 | AQ16: 0.2210539909 | AR16: =SUM(AR12:AR15)/AR7 -> 0.2246086135 | AS16: 0.2272183111 | AT16: =SUM(AT12:AT15)/AT7 -> 0.2298396842 | AU16: 0.2331302587 | AV16: =SUM(AV12:AV15)/AV7 -> 0.2359559854 | AW16: 0.2396385802 | AX16: =SUM(AX12:AX15)/AX7 -> 0.244968469 | AY16: 0.2400008295 | AZ16: 0.2400025288 | BA16: 0.2400006879 | BB16: 0.2400013412 | BC16: 0.2400020152 | BD16: =SUM(BD12:BD15)/BD7 -> 0.2400010778 | BE16: 0.2399998786 | BF16: =SUM(BF12:BF15)/BF7 -> 0.2400016027 | BG16: 0
A17: Overall Lifetime Redemption Rate | B17: 0.0968 | C17: 0.1033 | D17: 0.1024 | E17: 0.1079 | F17: 0.1124 | G17: 0.1178 | H17: 0.1297 | I17: 0.1336 | J17: 0.1521 | K17: 0.1435 | L17: 0.1336 | M17: 0.1253 | N17: 0.1184 | O17: 0.1124 | P17: 0.1071 | Q17: 0.1023 | R17: 0.098 | S17: 0.0939 | T17: 0.0909 | U17: 0.0877 | V17: 0.0848 | W17: 0.0824 | X17: 0.0796 | Y17: 0.0777 | Z17: 0.0757 | AA17: 0.0736 | AB17: 0.0719 | AC17: 0.0703 | AD17: 0.069 | AE17: 0.0678 | AF17: 0.0667 | AG17: 0.066 | AH17: 0.0653 | AI17: 0.0646 | AJ17: 0.0644 | AK17: 0.0639 | AL17: 0.0634 | AM17: 0.064 | AN17: 0.0636 | AO17: 0.0639 | AP17: 0.0638 | AQ17: 0.0639 | AR17: 0.0639 | AS17: 0.0635 | AT17: 0.0632 | AU17: 0.063 | AV17: 0.0627 | AW17: 0.0627 | AX17: 0.0632 | AY17: 0.063 | AZ17: 0.063 | BA17: 0.0633 | BB17: 0.0633 | BC17: 0.0633 | BD17: 0.0629 | BE17: 0.0627 | BF17: 0.0627 | BG17: 1
A18: Quarterly Redemption Rate | B18: 0.0185 | C18: 0.0282 | D18: 0.0262 | E18: 0.0322 | F18: 0.034 | G18: 0.0378 | H18: 0.0527 | I18: 0.0426 | J18: 0.0795 | K18: 0.0168 | L18: 0.0081 | M18: 0.0078 | N18: 0.0085 | O18: 0.0084 | P18: 0.0086 | Q18: 0.0072 | R18: 0.0067 | S18: 0.0059 | T18: 0.0089 | U18: 0.0068 | V18: 0.006 | W18: 0.0082 | X18: 0.0041 | Y18: 0.0087 | Z18: 0.0066 | AA18: 0.0054 | AB18: 0.0064 | AC18: 0.0067 | AD18: 0.0085 | AE18: 0.0078 | AF18: 0.009 | AG18: 0.0108 | AH18: 0.0114 | AI18: 0.01 | AJ18: 0.0146 | AK18: 0.0125 | AL18: 0.0112 | AM18: 0.0218 | AN18: 0.0129 | AO18: 0.0186 | AP18: 0.0156 | AQ18: 0.0172 | AR18: 0.0163 | AS18: 0.0118 | AT18: 0.0128 | AU18: 0.0144 | AV18: 0.0126 | AW18: 0.0158 | AX18: 0.0218 | AY18: 0.0142 | AZ18: 0.0159 | BA18: 0.0197 | BB18: 0.017 | BC18: 0.0161 | BD18: 0.0102 | BE18: 0.0139 | BF18: 0.0149 | BG18: 1
A19: Further Advances released in the quarter | B19: 3755 | C19: 5081 | D19: 8266 | E19: 4949 | F19: 6601 | G19: 3171 | H19: 4333 | I19: 2657 | J19: 528 | K19: 499 | L19: 1212 | M19: 947 | N19: 918 | O19: 606 | P19: 268 | Q19: 641 | R19: 348 | S19: 151 | T19: 221 | U19: 416 | V19: 211 | W19: 175 | X19: 799 | Y19: 97 | Z19: 300 | AA19: 238 | AB19: 298 | AC19: 327 | AD19: 255 | AE19: 377 | AF19: 92 | AG19: 9 | AH19: 485 | AI19: 742 | AJ19: 326 | AK19: 265 | AL19: 489 | AM19: 557 | AN19: 641 | AO19: 272 | AP19: 223 | AQ19: 365 | AR19: 357 | AS19: 272 | AT19: 1085 | AU19: 235 | AV19: 450 | AW19: 320 | AX19: 23 | AY19: 0 | AZ19: 0 | BA19: 0 | BB19: 0 | BC19: 0 | BD19: 0 | BE19: 0 | BF19: 0 | BG19: 0
A20: First Loss Fund Balance | B20: 28504 | C20: 28504 | D20: 28504 | E20: 28504 | F20: 28504 | G20: 28504 | H20: 28504 | I20: 28504 | J20: 28504 | K20: 28504 | L20: 28504 | M20: 28504 | N20: 28504 | O20: 28504 | P20: 28504 | Q20: 28504 | R20: 28504 | S20: 28504 | T20: 28504 | U20: 28504 | V20: 28504 | W20: 28504 | X20: 28504 | Y20: 28504 | Z20: 28504 | AA20: 28504 | AB20: 28504 | AC20: 28504 | AD20: 28504 | AE20: 28504 | AF20: 28504 | AG20: 28504 | AH20: 28504 | AI20: 28504 | AJ20: 28504 | AK20: 28504 | AL20: 28504 | AM20: 28504 | AN20: 28504 | AO20: 28504 | AP20: 28504 | AQ20: 28504 | AR20: 28504 | AS20: 28504 | AT20: 28504 | AU20: 28504 | AV20: 28504 | AW20: 28504 | AX20: 28504 | AY20: 28504 | AZ20: 28504 | BA20: 28504 | BB20: 28504 | BC20: 28504 | BD20: 28504 | BE20: 28504 | BF20: 28504 | BG20: 0
A21: First Loss Fund as a % of the Mortgages | B21: =+B20/B6 -> 0.01925891292 | C21: 0.01966750708 | D21: 0.02003390526 | E21: 0.02058049056 | F21: 0.02116152291 | G21: 0.02190714518 | H21: 0.02301045981 | I21: 0.02393948276 | J21: 0.02597049983 | K21: 0.02637647364 | L21: 0.02653334215 | M21: 0.02669788788 | N21: 0.02688625409 | O21: 0.02707863482 | P21: 0.02728935099 | Q21: 0.02744540335 | R21: 0.02760333092 | S21: 0.02773985034 | T21: 0.02795674668 | U21: 0.0281224903 | V21: =+V20/V6 -> 0.02825560498 | W21: 0.02845980193 | X21: 0.02853744589 | Y21: 0.02877163374 | Z21: 0.02893883493 | AA21: 0.02908155978 | AB21: =+AB20/AB6 -> 0.02924576022 | AC21: 0.02936764366 | AD21: 0.02960633258 | AE21: 0.02982769338 | AF21: 0.0300947482 | AG21: 0.030422116 | AH21: =+AH20/AH6 -> 0.03075575486 | AI21: 0.03104060359 | AJ21: =+AJ20/AJ6 -> 0.03148735172 | AK21: 0.03187648905 | AL21: =+AL20/AL6 -> 0.03221828483 | AM21: 0.0329137982 | AN21: =+AN20/AN6 -> 0.03332030463 | AO21: 0.03394200668 | AP21: =+AP20/AP6 -> 0.03446944634 | AQ21: 0.03505596745 | AR21: =+AR20/AR6 -> 0.03561966935 | AS21: 0.0360335314 | AT21: =+AT20/AT6 -> 0.03644925863 | AU21: 0.03697105772 | AV21: =+AV20/AV6 -> 0.03741919515 | AW21: 0.03800320434 | AX21: =+AX20/AX6 -> 0.03884844595 | AY21: 0.0394090707 | AZ21: =+AZ20/AZ6 -> 0.04004467496 | BA21: 0.04084997742 | BB21: =+BB20/BB6 -> 0.04155454898 | BC21: 0.04223530889 | BD21: =+BD20/BD6 -> 0.04267085811 | BE21: 0.04327197618 | BF21: =+BF20/BF6 -> 0.04392636668 | BG21: 0
A22: Opening PDL Balance | B22: 0 | C22: 0 | D22: 0 | E22: 0 | F22: 0 | G22: 0 | H22: 0 | I22: 0 | J22: 0 | K22: 0 | L22: 0 | M22: 0 | N22: 0 | O22: 0 | P22: 0 | Q22: 0 | R22: 0 | S22: 0 | T22: 0 | U22: 0 | V22: 0 | W22: 0 | X22: 0 | Y22: 0 | Z22: 0 | AA22: 0 | AB22: 0 | AC22: 0 | AD22: 0 | AE22: 0 | AF22: 0 | AG22: 0 | AH22: 0 | AI22: 0 | AJ22: 0 | AK22: 0 | AL22: 0 | AM22: 0 | AN22: 0 | AO22: 0 | AP22: 0 | AQ22: 0 | AR22: 0 | AS22: 0 | AT22: 0 | AU22: 0 | AV22: 0 | AW22: 0 | AX22: 0 | AY22: 0 | AZ22: 0 | BA22: 0 | BB22: 0 | BC22: 0 | BD22: 0 | BE22: 0 | BF22: 0 | BG22: 0
A23: Quarterly Losses | B23: =SUM(B93+B125) -> 0 | C23: 0 | D23: 4 | E23: 12 | F23: -12 | G23: -3 | H23: =SUM(H93+H125) -> 4 | I23: 0 | J23: -2 | K23: 172 | L23: 161 | M23: 132 | N23: =SUM(N93+N125) -> 235 | O23: 185 | P23: 663 | Q23: 330 | R23: 614 | S23: 314 | T23: =SUM(T93+T125) -> 23 | U23: 178 | V23: 120 | W23: 268 | X23: -108 | Y23: 470 | Z23: =SUM(Z93+Z125) -> 336 | AA23: 170 | AB23: 365 | AC23: 253 | AD23: 326 | AE23: 381 | AF23: =SUM(AF93+AF125) -> 240 | AG23: 606 | AH23: =SUM(AH93+AH125) -> 353 | AI23: 563 | AJ23: =SUM(AJ93+AJ125) -> 468 | AK23: 215 | AL23: =SUM(AL93+AL125) -> 10 | AM23: -22 | AN23: =SUM(AN93+AN125) -> 164 | AO23: 152 | AP23: =SUM(AP93+AP125) -> 312 | AQ23: 547 | AR23: =SUM(AR93+AR125) -> 37 | AS23: 316 | AT23: =SUM(AT93+AT125) -> 489 | AU23: 520 | AV23: =SUM(AV93+AV125) -> 351 | AW23: 264 | AX23: =SUM(AX93+AX125) -> 775 | AY23: 185 | AZ23: =SUM(AZ93+AZ125) -> 77 | BA23: 524 | BB23: =SUM(BB93+BB125) -> -17 | BC23: 469 | BD23: =SUM(BD93+BD125) -> -99 | BE23: 164 | BF23: =SUM(BF93+BF125) -> 27 | BG23: -6
A24: Quarterly Loss Rate (annualised) | B24: 0 | C24: =1-(1-C23/C6)^4 -> 0 | D24: 1.124547897e-05 | E24: 3.465656427e-05 | F24: -3.563593438e-05 | G24: -9.222798604e-06 | H24: 1.29162775e-05 | I24: 0 | J24: -7.288961779e-06 | K24: 0.0006364959953 | L24: 0.000599341545 | M24: 0.0004944523845 | N24: 0.000886355492 | O24: 0.0007028104073 | P24: 0.002536573171 | Q24: 0.0012703715 | R24: 0.002376274893 | S24: 0.001221768348 | T24: 9.023062255e-05 | U24: 0.0007022852605 | V24: =1-(1-V23/V6)^4 -> 0.000475732198 | W24: =1-(1-W23/W6)^4 -> 0.001069908233 | X24: 0 | Y24: =1-(1-Y23/Y6)^4 -> 0.001896301979 | Z24: 0.00136380498 | AA24: 0.0006935979625 | AB24: 0.001497152328 | AC24: 0.001042255014 | AD24: 0.001353741698 | AE24: =1-(1-AE23/AE6)^4 -> 0.001593819344 | AF24: =1-(1-AF23/AF6)^4 -> 0.001013190392 | AG24: 0.002584609059 | AH24: =1-(1-AH23/AH6)^4 -> 0.001522674746 | AI24: 0.002450153615 | AJ24: =1-(1-AJ23/AJ6)^4 -> 0.002066328528 | AK24: 0.0009614052482 | AL24: =1-(1-AL23/AL6)^4 -> 4.521153323e-05 | AM24: 0 | AN24: 0.0007666234556 | AO24: =1-(1-AO23/AO6)^4 -> 0.0007237979899 | AP24: 0.001508333195 | AQ24: =1-(1-AQ23/AQ6)^4 -> 0.002688222388 | AR24: 0.0001849335341 | AS24: =1-(1-AS23/AS6)^4 -> 0.00159693724 | AT24: 0.002498874064 | AU24: =1-(1-AU23/AU6)^4 -> 0.002695131761 | AV24: 0.001841855504 | AW24: =1-(1-AW23/AW6)^4 -> 0.00140717796 | AX24: 0.004218338091 | AY24: =1-(1-AY23/AY6)^4 -> 0.001022717004 | AZ24: 0.0004326325678 | BA24: =1-(1-BA23/BA6)^4 -> 0.003000461455 | BB24: 0 | BC24: 0.0027768343 | BD24: 0 | BE24: 0.0009955029869 | BF24: =1-(1-BF23/BF6)^4 -> 0.000166424064 | BG24: 0
A25: PDL Replenishment made during the quarter (-ve = recoveries) | B25: 0 | C25: 0 | D25: 4 | E25: 12 | F25: -12 | G25: -3 | H25: 4 | I25: 0 | J25: -2 | K25: 172 | L25: 161 | M25: 132 | N25: 235 | O25: 185 | P25: 663 | Q25: 330 | R25: 614 | S25: 314 | T25: 23 | U25: 178 | V25: 120 | W25: 268 | X25: -108 | Y25: 470 | Z25: 336 | AA25: 170 | AB25: 365 | AC25: 253 | AD25: 326 | AE25: 381 | AF25: 240 | AG25: 606 | AH25: 353 | AI25: 563 | AJ25: 468 | AK25: 215 | AL25: 10 | AM25: -22 | AN25: 164 | AO25: 152 | AP25: 312 | AQ25: 547 | AR25: 37 | AS25: 316 | AT25: 489 | AU25: 520 | AV25: 351 | AW25: 264 | AX25: 775 | AY25: 185 | AZ25: 77 | BA25: 524 | BB25: -17 | BC25: 469 | BD25: -99 | BE25: 164 | BF25: 27 | BG25: -6
A26: Outstanding PDL at end of the quarter | B26: =B22+B23-B25 -> 0 | C26: 0 | D26: 0 | E26: 0 | F26: 0 | G26: 0 | H26: 0 | I26: 0 | J26: 0 | K26: 0 | L26: 0 | M26: 0 | N26: 0 | O26: 0 | P26: 0 | Q26: 0 | R26: 0 | S26: 0 | T26: 0 | U26: 0 | V26: =V22+V23-V25 -> 0 | W26: 0 | X26: 0 | Y26: 0 | Z26: 0 | AA26: 0 | AB26: =AB22+AB23-AB25 -> 0 | AC26: 0 | AD26: 0 | AE26: 0 | AF26: 0 | AG26: 0 | AH26: =AH22+AH23-AH25 -> 0 | AI26: 0 | AJ26: =AJ22+AJ23-AJ25 -> 0 | AK26: 0 | AL26: =AL22+AL23-AL25 -> 0 | AM26: 0 | AN26: =AN22+AN23-AN25 -> 0 | AO26: 0 | AP26: =AP22+AP23-AP25 -> 0 | AQ26: 0 | AR26: =AR22+AR23-AR25 -> 0 | AS26: 0 | AT26: =AT22+AT23-AT25 -> 0 | AU26: 0 | AV26: =AV22+AV23-AV25 -> 0 | AW26: 0 | AX26: =AX22+AX23-AX25 -> 0 | AY26: 0 | AZ26: =AZ22+AZ23-AZ25 -> 0 | BA26: 0 | BB26: =BB22+BB23-BB25 -> 0 | BC26: 0 | BD26: =BD22+BD23-BD25 -> 0 | BE26: 0 | BF26: =BF22+BF23-BF25 -> 0 | BG26: 0
A27: Spread Trap repayment in the quarter | B27: N/A | C27: N/A | D27: N/A | E27: N/A | F27: N/A | G27: N/A | H27: N/A | I27: N/A | J27: N/A | K27: N/A | L27: N/A | M27: N/A | N27: N/A | O27: N/A | P27: N/A | Q27: N/A | R27: N/A | S27: N/A | T27: N/A | U27: N/A | V27: N/A | W27: N/A | X27: N/A | Y27: N/A | Z27: N/A | AA27: N/A | AB27: N/A | AC27: N/A | AD27: N/A | AE27: N/A | AF27: N/A | AG27: N/A | AH27: N/A | AI27: N/A | AJ27: N/A | AK27: N/A | AL27: N/A | AM27: N/A | AN27: N/A | AO27: N/A | AP27: N/A | AQ27: N/A | AR27: N/A | AS27: N/A | AT27: N/A | AU27: N/A | AV27: N/A | AW27: N/A | AX27: N/A | AY27: N/A | AZ27: N/A | BA27: N/A | BB27: N/A | BC27: N/A | BD27: N/A | BE27: N/A | BF27: N/A | BG27: N/A
A28: Spread % (WA Funding Rate less WA Interest Rate) | B28: 0.0019 | C28: -0.0015 | D28: -0.001 | E28: -0.0032 | F28: -0.0061 | G28: -0.0007 | H28: -0.002 | I28: 0.0007 | J28: -0.0044 | K28: 0.0178 | L28: 0.0172 | M28: 0.0177 | N28: 0.0187 | O28: 0.0184 | P28: 0.0166 | Q28: 0.0163 | R28: 0.016 | S28: 0.0158 | T28: 0.0157 | U28: 0.0157 | V28: 0.0143 | W28: 0.0136 | X28: 0.0141 | Y28: 0.0134 | Z28: 0.0143 | AA28: 0.0145 | AB28: 0.0144 | AC28: 0.0144 | AD28: 0.0143 | AE28: 0.0143 | AF28: 0.0143 | AG28: 0.0141 | AH28: 0.014 | AI28: 0.014 | AJ28: 0.0139 | AK28: 0.014 | AL28: 0.014 | AM28: 0.0139 | AN28: 0.014 | AO28: 0.0135 | AP28: 0.014 | AQ28: 0.0142 | AR28: 0.0142 | AS28: 0.0145 | AT28: 0.0149 | AU28: 0.0147 | AV28: 0.0132 | AW28: 0.0141 | AX28: 0.0148 | AY28: 0.01402994866 | AZ28: 0.01446655683 | BA28: 0.01443405684 | BB28: 0.01434537271 | BC28: 0.0144 | BD28: 0.0116 | BE28: 0.0149 | BF28: 0.0146 | BG28: 0
A29: Total Income as a % of the Mortgages | B29: 0.0167 | C29: 0.0177 | D29: 0.0181 | E29: 0.0187 | F29: 0.0196 | G29: 0.0176 | H29: 0.0187 | I29: 0.0184 | J29: 0.0192 | K29: 0.0127 | L29: 0.0098 | M29: 0.0081 | N29: 0.0067 | O29: 0.0066 | P29: 0.0068 | Q29: 0.0068 | R29: 0.0068 | S29: 0.0066 | T29: 0.0064 | U29: 0.0067 | V29: 0.0076 | W29: 0.0074 | X29: 0.0076 | Y29: 0.0076 | Z29: 0.0063 | AA29: 0.0063 | AB29: 0.0066 | AC29: 0.0062 | AD29: 0.006 | AE29: 0.0065 | AF29: 0.0064 | AG29: 0.0067 | AH29: 0.0063 | AI29: 0.0066 | AJ29: 0.0069 | AK29: 0.0068 | AL29: 0.0062 | AM29: 0.0065 | AN29: 0.006 | AO29: 0.0067 | AP29: 0.0057 | AQ29: 0.0061 | AR29: 0.0055 | AS29: 0.0059 | AT29: 0.0064 | AU29: 0.007 | AV29: 0.0067 | AW29: 0.0074 | AX29: 0.0075 | AY29: 0.007381532268 | AZ29: 0.007071901118 | BA29: 0.006753254051 | BB29: 0.007298935327 | BC29: 0.0074 | BD29: 0.0058 | BE29: 0.0053 | BF29: 0.0053 | BG29: 0
A30: Quarterly surplus income to the Issuer | B30: 0 | C30: 4316 | D30: 4492 | E30: 3765 | F30: 3739 | G30: 3305 | H30: 3728 | I30: 2988 | J30: 2692 | K30: 3696 | L30: 2488 | M30: 2658 | N30: 2746 | O30: 2499 | P30: 2727 | Q30: 2978 | R30: 2823 | S30: 2944 | T30: 2897 | U30: 2888 | V30: 3305 | W30: 2777 | X30: 3435 | Y30: 3186 | Z30: 2684 | AA30: 2947 | AB30: 3047 | AC30: 2725 | AD30: 2384 | AE30: 2960 | AF30: 2857 | AG30: 2694 | AH30: 2392 | AI30: 2583 | AJ30: 2885 | AK30: 2993 | AL30: 2691 | AM30: 2927 | AN30: 2313 | AO30: 2868 | AP30: 2166 | AQ30: 2233 | AR30: 2372 | AS30: 2280 | AT30: 2349 | AU30: 2528 | AV30: 1957 | AW30: 2550 | AX30: 2007 | AY30: 2215 | AZ30: 2304 | BA30: 1658 | BB30: 2483 | BC30: 2159 | BD30: 1776 | BE30: 2071 | BF30: 2194 | BG30: =28504+2281 -> 30785
A31: Surplus Income as a % of the Mortgages | B31: =B30/1500000 -> 0 | C31: =+C30/B6 -> 0.002916133461 | D31: 0.003099440141 | E31: 0.002646212928 | F31: 0.00269963704 | G31: 0.002453649776 | H31: 0.00286520619 | I31: 0.002412126506 | J31: 0.002260913822 | K31: 0.003367491137 | L31: 0.002302296745 | M31: 0.002474236017 | N31: 0.002572003934 | O31: 0.002357169133 | P31: 0.002590634197 | Q31: 0.002851097644 | R31: 0.00271815793 | S31: 0.00285097552 | T31: 0.002819335758 | U31: 0.002832552779 | V31: 0.003260764469 | W31: 0.002752800134 | X31: 0.003429673717 | Y31: 0.003189738373 | Z31: 0.002709200988 | AA31: 0.002991957148 | AB31: 0.003108739568 | AC31: 0.002795912735 | AD31: 0.002456232897 | AE31: 0.003074471809 | AF31: 0.002989675834 | AG31: 0.002844346465 | AH31: 0.002552964548 | AI31: 0.002787051459 | AJ31: 0.003141739453 | AK31: 0.003306260304 | AL31: 0.00300938928 | AM31: 0.003308410037 | AN31: 0.002670839715 | AO31: 0.003352604325 | AP31: 0.00257923051 | AQ31: 0.002700332363 | AR31: 0.002917231083 | AS31: 0.002849173664 | AT31: 0.002969504815 | AU31: 0.00323265948 | AV31: 0.002538323041 | AW31: 0.003347563417 | AX31: 0.002675850095 | AY31: 0.003018850259 | AZ31: 0.003185465159 | BA31: 0.002329289611 | BB31: =+BB30/BA6 -> 0.003558465266 | BC31: 0.003147497588 | BD31: 0.002631557276 | BE31: 0.003100313891 | BF31: 0.00333071554 | BG31: 0
A32: Payment Holidays as a percentage of the Mortgages | B32: N/A | C32: N/A | D32: N/A | E32: N/A | F32: N/A | G32: N/A | H32: N/A | I32: N/A | J32: N/A | K32: N/A | L32: N/A | M32: N/A | N32: N/A | O32: N/A | P32: N/A | Q32: N/A | R32: N/A | S32: N/A | T32: N/A | U32: N/A | V32: N/A | W32: N/A | X32: N/A | Y32: N/A | Z32: N/A | AA32: N/A | AB32: N/A | AC32: N/A | AD32: N/A | AE32: N/A | AF32: N/A | AG32: N/A | AH32: N/A | AI32: N/A | AJ32: N/A | AK32: N/A | AL32: N/A | AM32: N/A | AN32: N/A | AO32: N/A | AP32: N/A | AQ32: N/A | AR32: N/A | AS32: N/A | AT32: N/A | AU32: N/A | AV32: N/A | AW32: N/A | AX32: N/A | AY32: N/A | AZ32: N/A | BA32: N/A | BB32: N/A | BC32: 0.0669 | BD32: 0.1575799025 | BE32: 0.05680555375 | BF32: 0.005623038132 | BG32: 0
A33: Losses as a % of the Mortgages | B33: =+B23/1500000 -> 0 | C33: =+C23/B6 -> 0 | D33: 2.759964507e-06 | E33: 8.434144792e-06 | F33: -8.664253672e-06 | G33: -2.227216136e-06 | H33: 3.074255569e-06 | I33: 0 | J33: -1.679727951e-06 | K33: 0.0001567122499 | L33: 0.0001489830289 | M33: 0.0001228740234 | N33: 0.0002201095865 | O33: 0.000174500316 | P33: 0.0006298461579 | Q33: 0.0003159376167 | R33: 0.0005911969427 | S33: 0.0003040782314 | T33: 2.238340436e-05 | U33: 0.0001745825466 | V33: 0.0001183938688 | W33: 0.000265664543 | X33: 0 | Y33: =+Y23/X6 -> 0.0004705514863 | Z33: 0.0003391548181 | AA33: 0.0001725933883 | AB33: 0.0003723957802 | AC33: 0.0002595838245 | AD33: 0.0003358774851 | AE33: 0.0003957343781 | AF33: 0.0002511453273 | AG33: 0.0006398195835 | AH33: 0.0003767543835 | AI33: 0.0006074757924 | AJ33: 0.0005096478558 | AK33: 0.0002375028284 | AL33: 1.118316343e-05 | AM33: -2.486676488e-05 | AN33: 0.0001893721199 | AO33: 0.0001776833533 | AP33: 0.0003715235084 | AQ33: 0.0006614786397 | AR33: 4.550486934e-05 | AS33: 0.0003948854728 | AT33: 0.0006181727777 | AU33: 0.0006649457791 | AV33: 0.0004552638669 | AW33: 0.0003465712714 | AX33: 0.001033275448 | AY33: 0.0002521387349 | AZ33: 0.000106458688 | BA33: 0.0007361566685 | BB33: -2.43632338e-05 | BC33: 0.0006837315278 | BD33: 0 | BE33: =+BE23/BD6 -> 0.0002455101295 | BF33: 4.098875094e-05 | BG33: -9.246358409e-06
A34: Number of Properties in Possession | B34: =SUM(B91+B123) -> 0 | C34: 0 | D34: 0 | E34: 0 | F34: =SUM(F91+F123) -> 0 | G34: 0 | H34: 0 | I34: =SUM(I91+I123) -> 0 | J34: 1 | K34: 1 | L34: =SUM(L91+L123) -> 0 | M34: 0 | N34: 0 | O34: =SUM(O91+O123) -> 0 | P34: 0 | Q34: 0 | R34: =SUM(R91+R123) -> 0 | S34: 0 | T34: 0 | U34: =SUM(U91+U123) -> 0 | V34: 1 | W34: 1 | X34: =SUM(X91+X123) -> 1 | Y34: 2 | Z34: 1 | AA34: =SUM(AA91+AA123) -> 1 | AB34: 1 | AC34: 0 | AD34: =SUM(AD91+AD123) -> 1 | AE34: 2 | AF34: 1 | AG34: 0 | AH34: 2 | AI34: 2 | AJ34: 0 | AK34: 0 | AL34: 0 | AM34: 0 | AN34: 0 | AO34: 0 | AP34: 0 | AQ34: =SUM(AQ91+AQ123) -> 0 | AR34: 1 | AS34: =SUM(AS91+AS123) -> 1 | AT34: 1 | AU34: =SUM(AU91+AU123) -> 0 | AV34: 0 | AW34: =SUM(AW91+AW123) -> 0 | AX34: 0 | AY34: =SUM(AY91+AY123) -> 0 | AZ34: 0 | BA34: =SUM(BA91+BA123) -> 0 | BB34: 0 | BC34: =SUM(BC91+BC123) -> 0 | BD34: 0 | BE34: =SUM(BE91+BE123) -> 0 | BF34: 0 | BG34: =SUM(BG91+BG123) -> 0
A35: Appointment of a Receiver of Rent | B35: 4 | C35: 16 | D35: 19 | E35: 20 | F35: 22 | G35: 42 | H35: 48 | I35: 109 | J35: 249 | K35: 271 | L35: 297 | M35: 303 | N35: 304 | O35: 205 | P35: 202 | Q35: 192 | R35: 183 | S35: 179 | T35: 193 | U35: 185 | V35: 197 | W35: 194 | X35: 198 | Y35: 188 | Z35: 175 | AA35: 171 | AB35: 172 | AC35: 187 | AD35: 178 | AE35: 174 | AF35: 180 | AG35: 167 | AH35: 155 | AI35: 146 | AJ35: 141 | AK35: 138 | AL35: 137 | AM35: 134 | AN35: 134 | AO35: 135 | AP35: 129 | AQ35: =SUM(AQ92+AQ124) -> 118 | AR35: 119 | AS35: =SUM(AS92+AS124) -> 117 | AT35: 114 | AU35: =SUM(AU92+AU124) -> 106 | AV35: 100 | AW35: =SUM(AW92+AW124) -> 98 | AX35: 90 | AY35: =SUM(AY92+AY124) -> 89 | AZ35: 90 | BA35: =SUM(BA92+BA124) -> 89 | BB35: 89 | BC35: =SUM(BC92+BC124) -> 85 | BD35: 87 | BE35: =SUM(BE92+BE124) -> 86 | BF35: 82 | BG35: =SUM(BG92+BG124) -> 0
A36: Average Number of months (Possessions) in Arrears at the Sale Date | B36: 0 | C36: 0 | D36: 0 | E36: 0 | F36: 0 | G36: 0 | H36: 0 | I36: 0 | J36: 0 | K36: 0 | L36: 18.93 | M36: 0 | N36: 0 | O36: 0 | P36: 0 | Q36: 0 | R36: 0 | S36: 0 | T36: 0 | U36: 0 | V36: 0 | W36: 0 | X36: 0 | Y36: 0 | Z36: 21.21 | AA36: 0 | AB36: 0 | AC36: 34.4 | AD36: 0 | AE36: 0 | AF36: 4.39 | AG36: 8.8 | AH36: 0 | AI36: 0 | AJ36: 19.23 | AK36: 0 | AL36: 0 | AM36: 0 | AN36: 0 | AO36: 0 | AP36: 0 | AQ36: 0 | AR36: 0 | AS36: 0 | AT36: 0 | AU36: 6.42 | AV36: 0 | AW36: 0 | AX36: 0 | AY36: 0 | AZ36: 0 | BA36: 0 | BB36: 0 | BC36: 0 | BD36: 0 | BE36: 0 | BF36: 0 | BG36: 0
A37: Average Number of months (RoR) in Arrears at the Sale Date | B37: 0 | C37: 0 | D37: 0 | E37: 1.02 | F37: 0 | G37: 4.91 | H37: 0 | I37: 1.04 | J37: 0 | K37: 7.42 | L37: 10.64 | M37: 9.64 | N37: 13.35 | O37: 12.28 | P37: 13.12 | Q37: 14.35 | R37: 12.85 | S37: 10.35 | T37: 0 | U37: 0.93 | V37: 16.12 | W37: 8.62 | X37: 0 | Y37: 1.51 | Z37: 0.41 | AA37: 0.83 | AB37: 0 | AC37: 0.6 | AD37: 3.43 | AE37: 2.11 | AF37: 4.93 | AG37: 5.18 | AH37: 3.49 | AI37: 1 | AJ37: 4.39 | AK37: 1.51 | AL37: 3.72 | AM37: 0 | AN37: 5.13 | AO37: 5.86 | AP37: 10.24 | AQ37: 2.61 | AR37: 8.36 | AS37: 5.22 | AT37: 15.91 | AU37: 1.93 | AV37: 16.69 | AW37: 17.08 | AX37: 9 | AY37: 51.03 | AZ37: 7.5 | BA37: 37.41 | BB37: 0 | BC37: 2 | BD37: 0 | BE37: 30.27 | BF37: 0 | BG37: 0
A38: Arrears excluding Receiver of Rent and Possession Cases
A39: Performing Loans | B39: 0.9964 | C39: 0.9973 | D39: 0.9962 | E39: 0.9953 | F39: 0.9876 | G39: 0.9884 | H39: 0.9839 | I39: 0.9855 | J39: 0.9733 | K39: 0.9763 | L39: 0.9797 | M39: 0.9822 | N39: 0.9829 | O39: 0.9883 | P39: 0.9937 | Q39: 0.9916 | R39: 0.9911 | S39: 0.9926 | T39: 0.9927 | U39: 0.9913 | V39: 0.9919 | W39: 0.9929 | X39: 0.9906 | Y39: 0.9914 | Z39: 0.9921 | AA39: 0.9953 | AB39: 0.9938 | AC39: 0.9984 | AD39: 0.9992 | AE39: 0.9982 | AF39: 0.9993 | AG39: 0.9978906081 | AH39: 0.9984135875 | AI39: 0.9982064671 | AJ39: 0.9994462744 | AK39: 0.9990654893 | AL39: 0.9991464093 | AM39: 0.9998081309 | AN39: 0.9996820655 | AO39: 0.9987278854 | AP39: 0.9986002901 | AQ39: 0.9996895025 | AR39: 0.9996472482 | AS39: 0.9992170475 | AT39: 0.998956053 | AU39: 0.9994343967 | AV39: 0.9974572123 | AW39: 0.9951386491 | AX39: 0.9941373137 | AY39: 0.9920392511 | AZ39: 0.9933633453 | BA39: 0.9968941724 | BB39: 0.9967155456 | BC39: 0.9873958973 | BD39: 0.9894537581 | BE39: 0.995209173 | BF39: 0.994356679 | BG39: 0
A40: >1 to 2 months arrears | B40: 0.0032 | C40: 0.0016 | D40: 0.0032 | E40: 0.0046 | F40: 0.006 | G40: 0.0094 | H40: 0.0115 | I40: 0.0083 | J40: 0.0158 | K40: 0.014 | L40: 0.0116 | M40: 0.0124 | N40: 0.0119 | O40: 0.0063 | P40: 0.0035 | Q40: 0.0063 | R40: 0.0065 | S40: 0.0058 | T40: 0.0061 | U40: 0.0068 | V40: 0.0073 | W40: 0.0064 | X40: 0.008 | Y40: 0.0079 | Z40: 0.006 | AA40: 0.0037 | AB40: 0.0041 | AC40: 0.0008 | AD40: 0.0004 | AE40: 0.0015 | AF40: 0.0004 | AG40: 0.001685569816 | AH40: 0.001115820205 | AI40: 0.001279872642 | AJ40: 0.0004200809524 | AK40: 0.0005881649673 | AL40: 0.000716820344 | AM40: 8.974137523e-05 | AN40: 0.0003179344777 | AO40: 0.001146115697 | AP40: 0.001031785279 | AQ40: 0.0001391637153 | AR40: 0.0003527517926 | AS40: 0.0007829524708 | AT40: 0.001043947008 | AU40: 0.0001079912035 | AV40: 0.001795276872 | AW40: 0.003593834057 | AX40: 0.003743507394 | AY40: 0.004703035083 | AZ40: 0.001620954424 | BA40: 0.001551543373 | BB40: 0.002513530965 | BC40: 0.0101603817 | BD40: 0.006989518205 | BE40: 0.00301226421 | BF40: 0.001274415381 | BG40: 0
A41: >2 to 3 months arrears | B41: 0.0004 | C41: 0.0004 | D41: 0 | E41: 0.0001 | F41: 0.0058 | G41: 0.0021 | H41: 0.0045 | I41: 0.0054 | J41: 0.0077 | K41: 0.0045 | L41: 0.0052 | M41: 0.0025 | N41: 0.0039 | O41: 0.0044 | P41: 0.0018 | Q41: 0.0009 | R41: 0.0011 | S41: 0.0004 | T41: 0.0002 | U41: 0.0013 | V41: 0.0005 | W41: 0.0005 | X41: 0.0008 | Y41: 0.0003 | Z41: 0.0016 | AA41: 0.0001 | AB41: 0.0013 | AC41: 0 | AD41: 0 | AE41: 0 | AF41: 0 | AG41: 7.61929828e-05 | AH41: 0.0003398653719 | AI41: 0.0002056496181 | AJ41: 0 | AK41: 0 | AL41: 0 | AM41: 0.000102127686 | AN41: 0 | AO41: 0.0001259988682 | AP41: 0.0001370251095 | AQ41: 0.0001713337745 | AR41: 0 | AS41: 0 | AT41: 0 | AU41: 0.0001932192147 | AV41: 0.0002846247664 | AW41: 0.0008104241444 | AX41: 0.0009920766917 | AY41: 0.00267688829 | AZ41: 0.004540690949 | BA41: 0.0006522263536 | BB41: 0.0003731987358 | BC41: 0.002147578731 | BD41: 0.0020236269 | BE41: 0.0009285508353 | BF41: 0.003702338858 | BG41: 0
A42: >3 months arrears | B42: 0 | C42: 0.0007 | D42: 0.0006 | E42: 0 | F42: 0.0006 | G42: 0.0001 | H42: 0.0001 | I42: 0.0008 | J42: 0.0032 | K42: 0.0052 | L42: 0.0035 | M42: 0.0029 | N42: 0.0013 | O42: 0.001 | P42: 0.001 | Q42: 0.0012 | R42: 0.0013 | S42: 0.0012 | T42: 0.001 | U42: 0.0006 | V42: 0.0003 | W42: 0.0002 | X42: 0.0006 | Y42: 0.0004 | Z42: 0.0003 | AA42: 0.0009 | AB42: 0.0008 | AC42: 0.0008 | AD42: 0.0004 | AE42: 0.0003 | AF42: 0.0003 | AG42: 0.0003476290857 | AH42: 0.0001307269521 | AI42: 0.0003080106394 | AJ42: 0.0001336446358 | AK42: 0.0003463457651 | AL42: 0.0001367703313 | AM42: 0 | AN42: 0 | AO42: 0 | AP42: 0.0002308994843 | AQ42: 0 | AR42: 0 | AS42: 0 | AT42: 0 | AU42: 0.000264392858 | AV42: 0.0004628860577 | AW42: 0.0004570926837 | AX42: 0.001127102261 | AY42: 0.0005808255544 | AZ42: 0.0004750092779 | BA42: 0.000902057877 | BB42: 0.0003977247158 | BC42: 0.0002961422424 | BD42: 0.001533096792 | BE42: 0.0008500119427 | BF42: 0.0006665667296 | BG42: 0
A43: Total | B43: =SUM(B39:B42) -> 1 | C43: 1 | D43: 1 | E43: 1 | F43: 1 | G43: 1 | H43: 1 | I43: 1 | J43: 1 | K43: 1 | L43: 1 | M43: 1 | N43: 1 | O43: 1 | P43: 1 | Q43: 1 | R43: 1 | S43: 1 | T43: 1 | U43: 1 | V43: =SUM(V39:V42) -> 1 | W43: 1 | X43: 1 | Y43: 1 | Z43: 1 | AA43: 1 | AB43: =SUM(AB39:AB42) -> 1 | AC43: 1 | AD43: 1 | AE43: 1 | AF43: 1 | AG43: 1 | AH43: 1 | AI43: 1 | AJ43: 1 | AK43: 1 | AL43: 1 | AM43: 1 | AN43: 1 | AO43: 1 | AP43: 1 | AQ43: 1 | AR43: 1 | AS43: 1 | AT43: 1 | AU43: 1 | AV43: 1 | AW43: 1 | AX43: 1 | AY43: 1 | AZ43: 1 | BA43: 1 | BB43: 1 | BC43: 1 | BD43: 1 | BE43: 1 | BF43: 1 | BG43: =SUM(BG39:BG42) -> 0
A44: Total Value of Arrears (£000's) | B44: 105 | C44: 150 | D44: 181 | E44: 128 | F44: 276 | G44: 336 | H44: 434 | I44: 591 | J44: 1057 | K44: 926 | L44: 909 | M44: 898 | N44: 806 | O44: 722 | P44: 655 | Q44: 594 | R44: 527 | S44: 471 | T44: 456 | U44: 457 | V44: 476 | W44: 439 | X44: 461 | Y44: 417 | Z44: 412 | AA44: 390 | AB44: 387 | AC44: 349 | AD44: 347 | AE44: 343 | AF44: 353 | AG44: 325 | AH44: 308 | AI44: 315.6364501 | AJ44: 285.988731 | AK44: 281.6777899 | AL44: 281.4046703 | AM44: 280.80839 | AN44: 287.6277907 | AO44: 298.3296793 | AP44: 275.8836204 | AQ44: 249.5179292 | AR44: 253.993691 | AS44: 271.7324702 | AT44: 264.1424499 | AU44: 262.1944483 | AV44: 232.3332301 | AW44: 202.2670597 | AX44: 264.2793503 | AY44: 186.6928309 | AZ44: 172.927659 | BA44: 80.7717413 | BB44: 92.52224878 | BC44: 102.5502599 | BD44: 108.9562297 | BE44: 75.08472939 | BF44: 77.94141968 | BG44: 0
A45: Total Value of Arrears as a % of the Notes Issued (£1,500,190,204) | B45: =+B44/1500190 -> 6.999113446e-05 | C45: =+C44/1500190 -> 9.998733494e-05 | D45: 0.0001206513842 | E45: 8.532252581e-05 | F45: 0.0001839766963 | G45: 0.0002239716303 | H45: 0.0002892966891 | I45: 0.0003939500997 | J45: 0.0007045774202 | K45: 0.0006172551477 | L45: 0.0006059232497 | M45: 0.0005985908452 | N45: 0.0005372652797 | O45: 0.0004812723722 | P45: 0.0004366113626 | Q45: 0.0003959498464 | R45: 0.0003512888367 | S45: 0.0003139602317 | T45: 0.0003039614982 | U45: 0.0003046280804 | V45: =+V44/1500190 -> 0.0003172931429 | W45: 0.0002926296003 | X45: 0.0003072944094 | Y45: 0.0002779647911 | Z45: 0.00027463188 | AA45: 0.0002599670708 | AB45: =+AB44/1500190 -> 0.0002579673241 | AC45: 0.0002326371993 | AD45: 0.0002313040348 | AE45: 0.0002286377059 | AF45: 0.0002353035282 | AG45: 0.0002166392257 | AH45: 0.0002053073277 | AI45: =+AI44/1500190 -> 0.0002103976497 | AJ45: 0.0001906350069 | AK45: =+AK44/1500190 -> 0.0001877614101 | AL45: 0.0001875793535 | AM45: =+AM44/1500190 -> 0.0001871818836 | AN45: 0.0001917275749 | AO45: =+AO44/1500190 -> 0.0001988612638 | AP45: 0.0001838991197 | AQ45: =+AQ44/1500190 -> 0.0001663242184 | AR45: 0.0001693076817 | AS45: =+AS44/1500190 -> 0.0001811320367 | AT45: 0.0001760726641 | AU45: =+AU44/1500190 -> 0.0001747741608 | AV45: 0.0001548692033 | AW45: =+AW44/1500190 -> 0.0001348276283 | AX45: 0.0001761639194 | AY45: =+AY44/1500190 -> 0.0001244461241 | AZ45: 0.000115270505 | BA45: =+BA44/1500190 -> 5.384100767e-05 | BB45: 6.167368718e-05 | BC45: =+BC44/1500190 -> 6.835818124e-05 | BD45: 7.26282869e-05 | BE45: =+BE44/1500190 -> 5.005014658e-05 | BF45: 5.195436557e-05 | BG45: =+BG44/1500190 -> 0
A47: Underlying Assets - Overall | B47: 2006-12-31 | C47: 2007-03-31 | D47: 2007-06-29 | E47: 2007-09-28 | F47: 2007-12-31 | G47: 2008-03-31 | H47: 2008-06-30 | I47: 2008-09-30 | J47: 2008-12-31 | K47: 2009-03-31 | L47: 2009-06-30 | M47: 2009-09-30 | N47: 2009-12-31 | O47: 2010-03-31 | P47: 2010-06-30 | Q47: 2010-09-30 | R47: 2010-12-31 | S47: 2011-03-31 | T47: 2011-06-30 | U47: 2011-09-30 | V47: 2011-12-30 | W47: 2012-03-30 | X47: 2012-06-29 | Y47: 2012-09-28 | Z47: 2012-12-31 | AA47: 2013-03-28 | AB47: 2013-06-28 | AC47: 2013-09-30 | AD47: 2013-12-31 | AE47: 2014-03-31 | AF47: 2014-06-30 | AG47: 2014-09-30 | AH47: 2014-12-31 | AI47: 2015-03-31 | AJ47: 2015-06-30 | AK47: =+AK5 -> 2015-09-30 | AL47: 2015-12-31 | AM47: 2016-03-31 | AN47: 2016-06-30 | AO47: 2016-09-30 | AP47: 2016-12-30 | AQ47: =+AQ5 -> 2017-03-31 | AR47: 2017-06-30 | AS47: =+AS5 -> 2017-09-29 | AT47: 2017-12-29 | AU47: =+AU5 -> 2018-03-29 | AV47: 2018-06-29 | AW47: =+AW5 -> 2018-09-28 | AX47: 2018-12-31 | AY47: =+AY5 -> 2019-03-29 | AZ47: 2019-06-28 | BA47: =+BA5 -> 2019-09-30 | BB47: 2019-12-31 | BC47: =+BC5 -> 2020-03-31 | BD47: 2020-06-30 | BE47: =+BE5 -> 2020-09-30 | BF47: 2020-12-31 | BG47: =+BG5 -> 2021-03-31
A48: Weighted Average LTV | B48: 0.7862 | C48: 0.7875 | D48: 0.788 | E48: 0.7882 | F48: 0.7887 | G48: 0.7892 | H48: 0.7899 | I48: 0.7893 | J48: 0.7903 | K48: 0.7909 | L48: 0.7908 | M48: 0.7913 | N48: 0.7914 | O48: 0.7913 | P48: 0.7908 | Q48: 0.7906 | R48: 0.7907 | S48: 0.7908 | T48: 0.7908 | U48: 0.7908 | V48: 0.7911 | W48: 0.7908 | X48: 0.7907 | Y48: 0.7906 | Z48: 0.7903 | AA48: 0.7901 | AB48: 0.7897 | AC48: 0.7897 | AD48: 0.7895 | AE48: 0.789 | AF48: 0.789 | AG48: 0.7885612897 | AH48: 0.7884944814 | AI48: 0.7884865802 | AJ48: 0.7884332606 | AK48: 0.7881165046 | AL48: 0.7876861511 | AM48: 0.7876026043 | AN48: 0.7870567993 | AO48: 0.786981307 | AP48: 0.7872454438 | AQ48: 0.7860949216 | AR48: 0.7858281451 | AS48: 0.7855013026 | AT48: 0.7847467735 | AU48: 0.7846467515 | AV48: 0.7838877073 | AW48: 0.7836265144 | AX48: 0.7834695724 | AY48: 0.7825359134 | AZ48: 0.7821591877 | BA48: 0.78283935 | BB48: 0.7825378171 | BC48: 0.7825605728 | BD48: 0.7823635611 | BE48: 0.782479029 | BF48: 0.7826160735 | BG48: 0
A49: Weighted Average Nationwide Indexed LTV | B49: 0.7435 | C49: 0.733 | D49: 0.7225 | E49: 0.7028 | F49: 0.6979 | G49: 0.7026 | H49: 0.7204 | I49: 0.7462 | J49: 0.8049 | K49: 0.8284 | L49: 0.8799 | M49: 0.8519 | N49: 0.825 | O49: 0.8099 | P49: 0.8109 | Q49: 0.7912 | R49: 0.812 | S49: 0.8138 | T49: 0.7952 | U49: 0.7961 | V49: 0.8021 | W49: 0.8219 | X49: 0.8223 | Y49: 0.812 | Z49: 0.8111 | AA49: 0.8208 | AB49: 0.8191 | AC49: 0.7826 | AD49: 0.7797 | AE49: 0.7713 | AF49: 0.7611 | AG49: 0.7197344973 | AH49: 0.7206562959 | AI49: 0.7213075629 | AJ49: 0.7229697352 | AK49: 0.7023163722 | AL49: 0.700771907 | AM49: 0.7005334726 | AN49: 0.6971426884 | AO49: 0.6791802984 | AP49: 0.6758040488 | AQ49: 0.6725687748 | AR49: 0.6736791375 | AS49: 0.6580003534 | AT49: 0.6581899723 | AU49: 0.65401195 | AV49: 0.6474178885 | AW49: 0.6472092126 | AX49: 0.640686358 | AY49: 0.6499554118 | AZ49: 0.65108154 | BA49: 0.6445846385 | BB49: 0.6433098251 | BC49: 0.6475373774 | BD49: 0.6398404857 | BE49: 0.6212334199 | BF49: 0.6092949138 | BG49: 0
A50: Weighted Average Halifax Indexed LTV | B50: 0.7434 | C50: 0.721 | D50: 0.705 | E50: 0.6897 | F50: 0.6865 | G50: 0.7031 | H50: 0.7232 | I50: 0.7456 | J50: 0.8028 | K50: 0.8558 | L50: 0.8912 | M50: 0.8895 | N50: 0.8698 | O50: 0.8479 | P50: 0.8467 | Q50: 0.8373 | R50: 0.8479 | S50: 0.8592 | T50: 0.8758 | U50: 0.8679 | V50: 0.8633 | W50: 0.8717 | X50: 0.8723 | Y50: 0.8721 | Z50: 0.8734 | AA50: 0.8789 | AB50: 0.8618 | AC50: 0.8387 | AD50: 0.8207 | AE50: 0.819 | AF50: 0.8032 | AG50: 0.7758314156 | AH50: 0.7529980877 | AI50: 0.7614823676 | AJ50: 0.7409197681 | AK50: 0.7072386366 | AL50: 0.7014311537 | AM50: 0.7056421656 | AN50: 0.6825694014 | AO50: N/A | AP50: N/A | AQ50: N/A | AR50: N/A | AS50: N/A | AT50: N/A | AU50: N/A | AV50: N/A | AW50: N/A | AX50: N/A | AY50: N/A | AZ50: N/A | BA50: N/A | BB50: N/A | BC50: N/A | BD50: N/A | BE50: N/A | BF50: N/A | BG50: N/A
A51: % of Variable Rate Mortgages | B51: 0.0156 | C51: 0.0152 | D51: 0.0139 | E51: 0.0127 | F51: 0.0121 | G51: 0.0116 | H51: 0.0125 | I51: 0.0124 | J51: 0.0128 | K51: 0.013 | L51: 0.0125 | M51: 0.0119 | N51: 0.0117 | O51: 0.0115 | P51: 0.0109 | Q51: 0.0103 | R51: 0.0101 | S51: 0.01 | T51: 0.0095 | U51: 0.0088 | V51: 0.0081 | W51: 0.0077 | X51: 0.0076 | Y51: 0.0075 | Z51: 0.0072 | AA51: 0.0069 | AB51: 0.0066 | AC51: 0.0064 | AD51: 0.0061 | AE51: 0.0057 | AF51: 0.0057 | AG51: 0.005670114515 | AH51: 0.004386745841 | AI51: 0.004324355577 | AJ51: 0.004173915601 | AK51: 0.004128309928 | AL51: 0.00399477024 | AM51: 0.003991558153 | AN51: 0.003824614051 | AO51: 0.003776147495 | AP51: 0.003595789348 | AQ51: 0.003493241214 | AR51: 0.003064097431 | AS51: 0.003052192757 | AT51: 0.002987898297 | AU51: 0.002805816076 | AV51: 0.002792958828 | AW51: 0.002624485786 | AX51: 0.002593139 | AY51: 0.002479240814 | AZ51: 0.002415572469 | BA51: 0.002421607829 | BB51: 0.002401935882 | BC51: 0.002402372834 | BD51: 0.002315385836 | BE51: 0.002037359468 | BF51: 0.001903215615 | BG51: 0
A52: % of Fixed Rate Mortgages | B52: 0.632 | C52: 0.6441 | D52: 0.6462 | E52: 0.6354 | F52: 0.6524 | G52: 0.621 | H52: 0.5747 | I52: 0.4882 | J52: 0.333 | K52: 0.2917 | L52: 0.1773 | M52: 0.1186 | N52: 0.095 | O52: 0.0779 | P52: 0.0272 | Q52: 0.0274 | R52: 0.0192 | S52: 0.0145 | T52: 0.0089 | U52: 0.0045 | V52: 0.0038 | W52: 0.0035 | X52: 0.0034 | Y52: 0.0031 | Z52: 0.0031 | AA52: 0.0031 | AB52: 0 | AC52: 0 | AD52: 0 | AE52: 0 | AF52: 0 | AG52: 0 | AH52: 0 | AI52: 0 | AJ52: 0 | AK52: 0 | AL52: 0 | AM52: 0 | AN52: 0 | AO52: 0 | AP52: 0 | AQ52: 0 | AR52: 0 | AS52: 0 | AT52: 0 | AU52: 0 | AV52: 0 | AW52: 0.003341310428 | AX52: 0.003415625598 | AY52: 0.00346491674 | AZ52: 0.003520800216 | BA52: 0.003591603864 | BB52: 0.003653551069 | BC52: 0.003576207688 | BD52: 0.003613087126 | BE52: 0.003663985843 | BF52: 0.00371939532 | BG52: 0
A53: % of Base Rate Mortgages | B53: 0.1258 | C53: 0.1316 | D53: 0.1348 | E53: 0.1417 | F53: 0.1497 | G53: 0.1523 | H53: 0.1548 | I53: 0.1559 | J53: 0.1594 | K53: 0.1619 | L53: 0.1629 | M53: 0.1637 | N53: 0.1637 | O53: 0.1647 | P53: 0.1652 | Q53: 0.1655 | R53: 0.166 | S53: 0.1663 | T53: 0.1672 | U53: 0.1676 | V53: 0.1682 | W53: 0.169 | X53: 0.169 | Y53: 0.1696 | Z53: 0.1701 | AA53: 0.1706 | AB53: 0.1702 | AC53: 0.1692 | AD53: 0.17 | AE53: 0.1709 | AF53: 0.1716 | AG53: 0.1726757488 | AH53: 0.1736507041 | AI53: 0.1740840543 | AJ53: 0.1755606466 | AK53: 0.1754075574 | AL53: 0.1759405728 | AM53: 0.1767681759 | AN53: 0.1765450712 | AO53: 0.1774454712 | AP53: 0.1763671948 | AQ53: 0.1756312146 | AR53: 0.1773678162 | AS53: 0.1774762708 | AT53: 0.1775732294 | AU53: 0.1784449399 | AV53: 0.1790730478 | AW53: 0.1788016269 | AX53: 0.1807292806 | AY53: 0.1808577181 | AZ53: 0.180797172 | BA53: 0.1811235287 | BB53: 0.1816926055 | BC53: 0.1828446294 | BD53: 0.1834375461 | BE53: 0.1833523276 | BF53: 0.1835465167 | BG53: 0
A54: % of Libor Linked Mortgages | B54: 0.2266 | C54: 0.2091 | D54: 0.205 | E54: 0.2102 | F54: 0.1858 | G54: 0.215 | H54: 0.258 | I54: 0.3436 | J54: 0.4948 | K54: 0.5335 | L54: 0.6472 | M54: 0.7059 | N54: 0.7296 | O54: 0.7459 | P54: 0.7967 | Q54: 0.7968 | R54: 0.8047 | S54: 0.8091 | T54: 0.8143 | U54: 0.8191 | V54: 0.8198 | W54: 0.8198 | X54: 0.82 | Y54: 0.8199 | Z54: 0.8197 | AA54: 0.8195 | AB54: 0.8232 | AC54: 0.8244 | AD54: 0.8239 | AE54: 0.8234 | AF54: 0.8228 | AG54: 0.8216541367 | AH54: 0.8219625501 | AI54: 0.8215915901 | AJ54: 0.8202654378 | AK54: 0.8204641327 | AL54: 0.820064657 | AM54: 0.8192402659 | AN54: 0.8196303148 | AO54: 0.8187783813 | AP54: 0.8200370159 | AQ54: 0.8208755442 | AR54: 0.8195680864 | AS54: 0.8194715364 | AT54: 0.8194388723 | AU54: 0.818749244 | AV54: 0.8181339933 | AW54: 0.8152325768 | AX54: 0.8132619548 | AY54: 0.8131981243 | AZ54: 0.8132664553 | BA54: 0.8128632596 | BB54: 0.8122519075 | BC54: 0.8111767901 | BD54: 0.810633981 | BE54: 0.8109463271 | BF54: 0.8108308724 | BG54: 0
A55: Weighted Average Loan Size | B55: 122570 | C55: 123533.45 | D55: 124806 | E55: 125874.84 | F55: 127072.96 | G55: 127536.57 | H55: 127665.83 | I55: 127891.5 | J55: 127326.36 | K55: 127002.08 | L55: 127298.43 | M55: 127374.16 | N55: 127378.35 | O55: 127191.65 | P55: 127208.67 | Q55: 127338.38 | R55: 127359.33 | S55: 127329.33 | T55: 127240.22 | U55: 127204.59 | V55: 127340.42 | W55: 127197.44 | X55: 127466.53 | Y55: 127404.58 | Z55: 127547.51 | AA55: 127639.1 | AB55: 127603.79 | AC55: 128063.32 | AD55: 128180.88 | AE55: 128254.22 | AF55: 128269.56 | AG55: 128226.3512 | AH55: 128115.2753 | AI55: 128287.3865 | AJ55: 128331.7802 | AK55: 128421.8533 | AL55: 128480.2504 | AM55: 128128.3876 | AN55: 127908.8463 | AO55: 127977.0422 | AP55: 127968.9328 | AQ55: 127886.0957 | AR55: 127873.4454 | AS55: 128020.874 | AT55: 128115.7682 | AU55: 128070.0097 | AV55: 128154.1182 | AW55: 128234.2308 | AX55: 127692.8374 | AY55: 127698.669 | AZ55: 127609.3588 | BA55: 127633.5693 | BB55: 127617.0696 | BC55: 127529.3949 | BD55: 127602.0779 | BE55: 127881.4436 | BF55: 128014.2262 | BG55: 0
A56: Weighted Average Interest Rate | B56: 0.05425 | C56: 0.05496 | D56: 0.0559 | E56: 0.05796 | F56: 0.05786 | G56: 0.05701 | H56: 0.05834 | I56: 0.06053 | J56: 0.05939 | K56: 0.04212 | L56: 0.03417 | M56: 0.02924 | N56: 0.02605 | O56: 0.02613 | P56: 0.02481 | Q56: 0.02527 | R56: 0.02508 | S56: 0.02522 | T56: 0.02559 | U56: 0.02564 | V56: 0.02661 | W56: 0.02714 | X56: 0.02688 | Y56: 0.0249 | Z56: 0.0229 | AA56: 0.0228 | AB56: 0.02269 | AC56: 0.02273 | AD56: 0.02276 | AE56: 0.02274 | AF56: 0.02277 | AG56: 0.02287555183 | AH56: 0.02284793539 | AI56: 0.02288159941 | AJ56: 0.02290034099 | AK56: 0.02296035763 | AL56: 0.02291401155 | AM56: 0.02296209129 | AN56: 0.02295204093 | AO56: 0.02190670927 | AP56: 0.02110910692 | AQ56: 0.02095812007 | AR56: 0.02075553298 | AS56: 0.02066607125 | AT56: 0.0219177535 | AU56: 0.02311422656 | AV56: 0.02424315473 | AW56: 0.02486069518 | AX56: 0.02617548496 | AY56: 0.0265494077 | AZ56: 0.02590175524 | BA56: 0.0253337129 | BB56: 0.0254157293 | BC56: 0.0248593399 | BD56: 0.02148519887 | BE56: 0.01891446613 | BF56: 0.01829662683 | BG56: 0
A57: Weighted Average Maturity Date (years) | B57: 20.56 | C57: 20.33 | D57: 20.14 | E57: 19.93 | F57: 19.73 | G57: 19.5 | H57: 19.25 | I57: 19 | J57: 18.72 | K57: 18.49 | L57: 18.25 | M57: 18.01 | N57: 17.77 | O57: 17.53 | P57: 17.31 | Q57: 17.07 | R57: 16.83 | S57: 16.59 | T57: 16.34 | U57: 16.1 | V57: 15.87 | W57: 15.63 | X57: 15.39 | Y57: 15.16 | Z57: 14.92 | AA57: 14.69 | AB57: 14.46 | AC57: 14.22 | AD57: 13.97 | AE57: 13.74 | AF57: 13.5 | AG57: 13.28149332 | AH57: 13.06474124 | AI57: 12.82205859 | AJ57: 12.58527333 | AK57: 12.35173373 | AL57: 12.12384899 | AM57: 11.9102837 | AN57: 11.69617119 | AO57: 11.54535432 | AP57: 11.37420989 | AQ57: 11.12966726 | AR57: 10.90091092 | AS57: 10.67366449 | AT57: 10.47017952 | AU57: 10.26025951 | AV57: 10.07552222 | AW57: 9.941585231 | AX57: 9.731280329 | AY57: 9.509184957 | AZ57: 9.283536847 | BA57: 9.067553066 | BB57: 8.843225307 | BC57: 8.6251061 | BD57: 8.390726083 | BE57: 8.164826685 | BF57: 7.936437739 | BG57: 0
A58: Weighted Average Seasoning (months) | B58: 15.79 | C58: 18.3 | D58: 20.74 | E58: 23.31 | F58: 25.86 | G58: 28.74 | H58: 31.76 | I58: 34.71 | J58: 38.3 | K58: 41.17 | L58: 44.14 | M58: 47.07 | N58: 50.03 | O58: 52.93 | P58: 55.86 | Q58: 58.8 | R58: 61.74 | S58: 64.71 | T58: 67.68 | U58: 70.62 | V58: 73.57 | W58: 76.51 | X58: 79.52 | Y58: 82.49 | Z58: 85.45 | AA58: 88.35 | AB58: 91.29 | AC58: 94.47 | AD58: 97.48 | AE58: 100.38 | AF58: 103.35 | AG58: 106.3286255 | AH58: 109.2862661 | AI58: 112.2213479 | AJ58: 115.1716789 | AK58: 118.2150106 | AL58: 121.2218225 | AM58: 124.2400125 | AN58: 127.2216068 | AO58: 130.20128 | AP58: 133.1944558 | AQ58: 136.1162816 | AR58: 138.9807359 | AS58: 141.9953892 | AT58: 144.9578294 | AU58: 147.8164971 | AV58: 150.7765885 | AW58: 153.7890128 | AX58: 156.7356086 | AY58: 159.6631317 | AZ58: 162.6368289 | BA58: 165.5771816 | BB58: 168.5124809 | BC58: 171.4940029 | BD58: 174.4122276 | BE58: 177.2831735 | BF58: 180.1833557 | BG58: 0
A59: % of Interest Only Mortgages | B59: 0.9255 | C59: 0.9276 | D59: 0.9303 | E59: 0.9325 | F59: 0.9374 | G59: 0.94 | H59: 0.9423 | I59: 0.944 | J59: 0.9459 | K59: 0.9478 | L59: 0.9486 | M59: 0.9495 | N59: 0.9509 | O59: 0.9519 | P59: 0.9524 | Q59: 0.9539 | R59: 0.9539 | S59: 0.9544 | T59: 0.9553 | U59: 0.9562 | V59: 0.957 | W59: 0.9578 | X59: 0.9585 | Y59: 0.9598 | Z59: 0.9605 | AA59: 0.9611 | AB59: 0.9618 | AC59: 0.9627 | AD59: 0.9636 | AE59: 0.9642 | AF59: 0.9646 | AG59: 0.9652264788 | AH59: 0.9661675441 | AI59: 0.967545836 | AJ59: 0.9680999685 | AK59: 0.968349574 | AL59: 0.9688849763 | AM59: 0.9697087154 | AN59: 0.9702216354 | AO59: 0.9703553574 | AP59: 0.9710877324 | AQ59: 0.9715600767 | AR59: 0.9719305704 | AS59: 0.9725299535 | AT59: 0.973324889 | AU59: 0.9737007629 | AV59: 0.972511532 | AW59: 0.9728040662 | AX59: 0.9734410104 | AY59: 0.9741102235 | AZ59: 0.9748149983 | BA59: 0.9764976194 | BB59: 0.9770496412 | BC59: 0.9776810604 | BD59: 0.978608665 | BE59: 0.979343221 | BF59: 0.9795808209 | BG59: 0
A60: % of Repayment Mortgages | B60: 0.0745 | C60: 0.0724 | D60: 0.0697 | E60: 0.0675 | F60: 0.0626 | G60: 0.06 | H60: 0.0577 | I60: 0.056 | J60: 0.0541 | K60: 0.0522 | L60: 0.0514 | M60: 0.0505 | N60: 0.0491 | O60: 0.0481 | P60: 0.0476 | Q60: 0.0461 | R60: 0.0461 | S60: 0.0456 | T60: 0.0447 | U60: 0.0438 | V60: 0.043 | W60: 0.0422 | X60: 0.0415 | Y60: 0.0402 | Z60: 0.0395 | AA60: 0.0389 | AB60: 0.0382 | AC60: 0.0373 | AD60: 0.0364 | AE60: 0.0358 | AF60: 0.0354 | AG60: 0.03477352118 | AH60: 0.03383245591 | AI60: 0.03245416398 | AJ60: 0.03190003148 | AK60: 0.03165042603 | AL60: 0.03111502368 | AM60: 0.03029128461 | AN60: 0.02977836458 | AO60: 0.02964464263 | AP60: 0.02891226763 | AQ60: 0.02843992327 | AR60: 0.0280694296 | AS60: 0.0274700465 | AT60: 0.02667511101 | AU60: 0.0262992371 | AV60: 0.02748846803 | AW60: 0.02719593383 | AX60: 0.02655898962 | AY60: 0.02588977654 | AZ60: 0.02518500168 | BA60: 0.02350238057 | BB60: 0.02295035875 | BC60: 0.02231893957 | BD60: 0.021391335 | BE60: 0.02065677902 | BF60: 0.02041917915 | BG60: 0
A61: % of Mortgages in London | B61: 0.1972 | C61: 0.1971 | D61: 0.1976 | E61: 0.1985 | F61: 0.1972 | G61: 0.1951 | H61: 0.1879 | I61: 0.1842 | J61: 0.1754 | K61: 0.1742 | L61: 0.1726 | M61: 0.1717 | N61: 0.1708 | O61: 0.168 | P61: 0.1669 | Q61: 0.1667 | R61: 0.1665 | S61: 0.1663 | T61: 0.1664 | U61: 0.1656 | V61: 0.1649 | W61: 0.1628 | X61: 0.1636 | Y61: 0.162 | Z61: 0.1621 | AA61: 0.1615 | AB61: 0.1612 | AC61: 0.1617 | AD61: 0.1617 | AE61: 0.161 | AF61: 0.1591 | AG61: 0.1587358773 | AH61: 0.1589199358 | AI61: 0.1587553978 | AJ61: 0.1556709898 | AK61: 0.1555588253 | AL61: 0.1539002996 | AM61: 0.152227143 | AN61: 0.1507409507 | AO61: 0.149098484 | AP61: 0.147271074 | AQ61: 0.147201586 | AR61: 0.1469184717 | AS61: 0.1472584825 | AT61: 0.1482823938 | AU61: 0.1480181512 | AV61: 0.1482809022 | AW61: 0.1472864733 | AX61: 0.1445812994 | AY61: 0.1434718887 | AZ61: 0.1431800543 | BA61: 0.1410224351 | BB61: 0.1392375561 | BC61: 0.1399179981 | BD61: 0.1398175657 | BE61: 0.140661591 | BF61: 0.1393657553 | BG61: 0
A62: % of Mortgages in the South East | B62: 0.2653 | C62: 0.263 | D62: 0.2599 | E62: 0.2596 | F62: 0.2586 | G62: 0.2553 | H62: 0.2511 | I62: 0.2489 | J62: 0.2422 | K62: 0.2417 | L62: 0.2419 | M62: 0.2415 | N62: 0.241 | O62: 0.2415 | P62: 0.2413 | Q62: 0.2408 | R62: 0.2408 | S62: 0.2403 | T62: 0.2411 | U62: 0.2406 | V62: 0.24 | W62: 0.2403 | X62: 0.2398 | Y62: 0.2401 | Z62: 0.2394 | AA62: 0.2392 | AB62: 0.239 | AC62: 0.2383 | AD62: 0.2381 | AE62: 0.2383 | AF62: 0.2378 | AG62: 0.2366054191 | AH62: 0.2352251186 | AI62: 0.2341486619 | AJ62: 0.2346709667 | AK62: 0.2326240124 | AL62: 0.2316371003 | AM62: 0.2302507811 | AN62: 0.2287136653 | AO62: 0.2272988223 | AP62: 0.2276489881 | AQ62: 0.226690569 | AR62: 0.2248948051 | AS62: 0.2240675583 | AT62: 0.2222445792 | AU62: 0.2216653337 | AV62: 0.2209384974 | AW62: 0.2213405447 | AX62: 0.2210090423 | AY62: 0.2196269001 | AZ62: 0.2184184032 | BA62: 0.2176046386 | BB62: 0.2183409273 | BC62: 0.21623888 | BD62: 0.2150740166 | BE62: 0.2149180205 | BF62: 0.2141444392 | BG62: 0
A63: % of Owner Occupied Mortgages | B63: 0 | C63: 0 | D63: 0 | E63: 0 | F63: 0 | G63: 0 | H63: 0 | I63: 0 | J63: 0 | K63: 0 | L63: 0 | M63: 0 | N63: 0 | O63: 0 | P63: 0 | Q63: 0 | R63: 0 | S63: 0 | T63: 0 | U63: 0 | V63: 0 | W63: 0 | X63: 0 | Y63: 0 | Z63: 0 | AA63: 0 | AB63: 0 | AC63: 0 | AD63: 0 | AE63: 0 | AF63: 0 | AG63: 0 | AH63: 0 | AI63: 0 | AJ63: 0 | AK63: 0 | AL63: 0 | AM63: 0 | AN63: 0 | AO63: 0 | AP63: 0 | AQ63: 0 | AR63: 0 | AS63: 0 | AT63: 0 | AU63: 0 | AV63: 0 | AW63: 0 | AX63: 0 | AY63: 0 | AZ63: 0 | BA63: 0 | BB63: 0 | BC63: 0 | BD63: 0 | BE63: 0 | BF63: 0 | BG63: 0
A64: % of Investment Home Loans - Professional Landlords | B64: 0.6365 | C64: 0.6327 | D64: 0.6299 | E64: 0.6279 | F64: 0.6275 | G64: 0.6319 | H64: 0.641 | I64: 0.6464 | J64: 0.6666 | K64: 0.6675 | L64: 0.6701 | M64: 0.6713 | N64: 0.6722 | O64: 0.672 | P64: 0.6736 | Q64: 0.6751 | R64: 0.6756 | S64: 0.6767 | T64: 0.6759 | U64: 0.6771 | V64: 0.6782 | W64: 0.6806 | X64: 0.681 | Y64: 0.6817 | Z64: 0.6831 | AA64: 0.6841 | AB64: 0.6845 | AC64: 0.685 | AD64: 0.6858 | AE64: 0.6874 | AF64: 0.6895 | AG64: 0.6909492817 | AH64: 0.6925351032 | AI64: 0.6926660003 | AJ64: 0.6946397232 | AK64: 0.6962545924 | AL64: 0.6993905767 | AM64: 0.7020783008 | AN64: 0.7026671723 | AO64: 0.7041576547 | AP64: 0.7074556663 | AQ64: 0.7075085336 | AR64: 0.7095095266 | AS64: 0.7110469883 | AT64: 0.7119997046 | AU64: 0.7127536302 | AV64: 0.7135519226 | AW64: 0.7171752851 | AX64: 0.7203716199 | AY64: 0.7225068345 | AZ64: 0.7237000578 | BA64: 0.727709261 | BB64: 0.7304871669 | BC64: 0.7311058275 | BD64: 0.7329018438 | BE64: 0.7339040395 | BF64: 0.7354223244 | BG64: 0
A65: % of Investment Home Loans - Emerging Professional Landlords | B65: 0.3635 | C65: 0.3673 | D65: 0.3701 | E65: 0.3721 | F65: 0.3725 | G65: 0.3681 | H65: 0.359 | I65: 0.3536 | J65: 0.3334 | K65: 0.3325 | L65: 0.3299 | M65: 0.3287 | N65: 0.3278 | O65: 0.328 | P65: 0.3264 | Q65: 0.3249 | R65: 0.3244 | S65: 0.3233 | T65: 0.3241 | U65: 0.3229 | V65: 0.3218 | W65: 0.3194 | X65: 0.319 | Y65: 0.3183 | Z65: 0.3169 | AA65: 0.3159 | AB65: 0.3155 | AC65: 0.315 | AD65: 0.3142 | AE65: 0.3126 | AF65: 0.3105 | AG65: 0.3090507183 | AH65: 0.3074648968 | AI65: 0.3073339997 | AJ65: 0.3053602768 | AK65: 0.3037454076 | AL65: 0.3006094233 | AM65: 0.2979216992 | AN65: 0.2973328277 | AO65: 0.2958423453 | AP65: 0.2925443337 | AQ65: 0.2924914664 | AR65: 0.2904904734 | AS65: 0.2889530117 | AT65: 0.2880002954 | AU65: 0.2872463698 | AV65: 0.2864480774 | AW65: 0.2828247149 | AX65: 0.2796283801 | AY65: 0.2774931655 | AZ65: 0.2762999422 | BA65: 0.272290739 | BB65: 0.2695128331 | BC65: 0.2688941725 | BD65: 0.2670981562 | BE65: 0.2660959605 | BF65: 0.2645776756 | BG65: 0
A66: Weighted Average Interest Coverage Ratio (calculated at the origination date) | B66: 1.81 | C66: 1.8 | D66: 1.79 | E66: 1.78 | F66: 1.76 | G66: 1.84 | H66: 1.73 | I66: 1.74 | J66: 1.75 | K66: 1.75 | L66: 1.74 | M66: 1.74 | N66: 1.73 | O66: 1.73 | P66: 1.73 | Q66: 1.72 | R66: 1.72 | S66: 1.72 | T66: 1.72 | U66: 1.72 | V66: 1.72 | W66: 1.72 | X66: 1.72 | Y66: 1.71 | Z66: 1.71 | AA66: 1.71 | AB66: 1.7 | AC66: 1.71 | AD66: 1.71 | AE66: 1.71 | AF66: 1.71 | AG66: 1.708809765 | AH66: 1.704837686 | AI66: 1.702381931 | AJ66: 1.6824596 | AK66: 1.679410763 | AL66: 1.677272884 | AM66: 1.679849687 | AN66: 1.679924079 | AO66: 1.682844551 | AP66: 1.682456624 | AQ66: 1.679477569 | AR66: 1.678208208 | AS66: 1.6786985 | AT66: 1.678361728 | AU66: 1.676033646 | AV66: 1.676370353 | AW66: 1.677827815 | AX66: 1.671835164 | AY66: 1.672772446 | AZ66: 1.673153182 | BA66: 1.672990885 | BB66: 1.663473468 | BC66: 1.664029911 | BD66: 1.662208601 | BE66: 1.658308722 | BF66: 1.658695414 | BG66: 0
A67: % of Paragon Originated Assets | B67: 0.5513 | C67: 0.5487 | D67: 0.5496 | E67: 0.5515 | F67: 0.5578 | G67: 0.5698 | H67: 0.5914 | I67: 0.5968 | J67: 0.6216 | K67: 0.6243 | L67: 0.6256 | M67: 0.6269 | N67: 0.6274 | O67: 0.6284 | P67: 0.6307 | Q67: 0.6328 | R67: 0.6339 | S67: 0.6346 | T67: 0.6343 | U67: 0.6356 | V67: 0.6368 | W67: 0.6371 | X67: 0.6375 | Y67: 0.6386 | Z67: 0.6399 | AA67: 0.6411 | AB67: 0.641 | AC67: 0.6402 | AD67: 0.6414 | AE67: 0.6429 | AF67: 0.6445 | AG67: 0.6462898869 | AH67: 0.6478494615 | AI67: 0.6488435005 | AJ67: 0.6505658505 | AK67: 0.6514292532 | AL67: 0.6548184631 | AM67: 0.658284172 | AN67: 0.6600559539 | AO67: 0.6615948405 | AP67: 0.662901782 | AQ67: 0.6632187292 | AR67: 0.665533484 | AS67: 0.6671591214 | AT67: 0.6700126858 | AU67: 0.6717244847 | AV67: 0.6735372766 | AW67: 0.6762386679 | AX67: 0.6769344382 | AY67: 0.6796480667 | AZ67: 0.6816611866 | BA67: 0.6840486145 | BB67: 0.6879590908 | BC67: 0.6910156721 | BD67: 0.6935454925 | BE67: 0.6964982063 | BF67: 0.6989791731 | BG67: 0
A68: % of Mortgage Trust Originated Assets | B68: 0.4487 | C68: 0.4513 | D68: 0.4504 | E68: 0.4485 | F68: 0.4422 | G68: 0.4302 | H68: 0.4086 | I68: 0.4032 | J68: 0.3784 | K68: 0.3757 | L68: 0.3744 | M68: 0.3731 | N68: 0.3726 | O68: 0.3716 | P68: 0.3693 | Q68: 0.3672 | R68: 0.3661 | S68: 0.3654 | T68: 0.3657 | U68: 0.3644 | V68: 0.3632 | W68: 0.3629 | X68: 0.3625 | Y68: 0.3614 | Z68: 0.3601 | AA68: 0.3589 | AB68: 0.359 | AC68: 0.3598 | AD68: 0.3586 | AE68: 0.3571 | AF68: 0.3555 | AG68: 0.3537101131 | AH68: 0.3521505385 | AI68: 0.3511564995 | AJ68: 0.3494341495 | AK68: 0.3485707468 | AL68: 0.3451815369 | AM68: 0.341715828 | AN68: 0.3399440461 | AO68: 0.3384051595 | AP68: 0.337098218 | AQ68: 0.3367812708 | AR68: 0.334466516 | AS68: 0.3328408786 | AT68: 0.3299873142 | AU68: 0.3282755153 | AV68: 0.3264627234 | AW68: 0.3237613321 | AX68: 0.3230655618 | AY68: 0.3203519333 | AZ68: 0.3183388134 | BA68: 0.3159513855 | BB68: 0.3120409092 | BC68: 0.3089843279 | BD68: 0.3064545075 | BE68: 0.3035017937 | BF68: 0.3010208269 | BG68: 0
A70: Underlying Assets - Paragon Originated Assets | B70: 2006-12-31 | C70: 2007-03-31 | D70: 2007-06-29 | E70: 2007-09-28 | F70: 2007-12-31 | G70: 2008-03-31 | H70: 2008-06-30 | I70: 2008-09-30 | J70: 2008-12-31 | K70: 2009-03-31 | L70: 2009-06-30 | M70: 2009-09-30 | N70: 2009-12-31 | O70: 2010-03-31 | P70: 2010-06-30 | Q70: 2010-09-30 | R70: 2010-12-31 | S70: 2011-03-31 | T70: 2011-06-30 | U70: 2011-09-30 | V70: 2011-12-30 | W70: 2012-03-30 | X70: 2012-06-29 | Y70: 2012-09-28 | Z70: 2012-12-31 | AA70: 2013-03-28 | AB70: 2013-06-28 | AC70: 2013-09-30 | AD70: 2013-12-31 | AE70: 2014-03-31 | AF70: 2014-06-30 | AG70: 2014-09-30 | AH70: 2014-12-31 | AI70: 2015-03-31 | AJ70: 2015-06-30 | AK70: 2015-09-30 | AL70: 2015-12-31 | AM70: =+AM47 -> 2016-03-31 | AN70: 2016-06-30 | AO70: 2016-09-30 | AP70: 2016-12-30 | AQ70: 2017-03-31 | AR70: 2017-06-30 | AS70: =+AS47 -> 2017-09-29 | AT70: 2017-12-29 | AU70: =+AU47 -> 2018-03-29 | AV70: 2018-06-29 | AW70: =+AW47 -> 2018-09-28 | AX70: 2018-12-31 | AY70: =+AY47 -> 2019-03-29 | AZ70: 2019-06-28 | BA70: =+BA47 -> 2019-09-30 | BB70: 2019-12-31 | BC70: =+BC47 -> 2020-03-31 | BD70: 2020-06-30 | BE70: =+BE47 -> 2020-09-30 | BF70: 2020-12-31 | BG70: =+BG47 -> 2021-03-31
A71: Weighted Average LTV | B71: 0.7996 | C71: 0.8012 | D71: 0.8016 | E71: 0.8008 | F71: 0.8006 | G71: 0.8007 | H71: 0.8009 | I71: 0.7996 | J71: 0.8003 | K71: 0.8008 | L71: 0.8008 | M71: 0.8012 | N71: 0.8013 | O71: 0.8011 | P71: 0.8007 | Q71: 0.8003 | R71: 0.8001 | S71: 0.8001 | T71: 0.8002 | U71: 0.8002 | V71: 0.8004 | W71: 0.7999 | X71: 0.8 | Y71: 0.7998 | Z71: 0.7994 | AA71: 0.799 | AB71: 0.7985 | AC71: 0.7978 | AD71: 0.7975 | AE71: 0.7967 | AF71: 0.7965 | AG71: 0.7960201159 | AH71: 0.7959158464 | AI71: 0.7959610952 | AJ71: 0.7960737293 | AK71: 0.7962886043 | AL71: 0.7958891814 | AM71: 0.7958457856 | AN71: 0.7952663904 | AO71: 0.7955051046 | AP71: 0.7953608063 | AQ71: 0.7942162093 | AR71: 0.7937579121 | AS71: 0.7932003411 | AT71: 0.7918957241 | AU71: 0.7915725542 | AV71: 0.7906336407 | AW71: 0.7897395631 | AX71: 0.7894853215 | AY71: 0.7880930838 | AZ71: 0.7878010824 | BA71: 0.7881149313 | BB71: 0.7881844798 | BC71: 0.7877657131 | BD71: 0.7872708285 | BE71: 0.7869846308 | BF71: 0.7871062932 | BG71: 0
A72: Weighted Average Nationwide Indexed LTV | B72: 0.7611 | C72: 0.7527 | D72: 0.7432 | E72: 0.723 | F72: 0.7194 | G72: 0.725 | H72: 0.7428 | I72: 0.7683 | J72: 0.8261 | K72: 0.8501 | L72: 0.9063 | M72: 0.88 | N72: 0.8545 | O72: 0.8406 | P72: 0.842 | Q72: 0.8237 | R72: 0.8434 | S72: 0.8458 | T72: 0.8266 | U72: 0.8265 | V72: 0.834 | W72: 0.8558 | X72: 0.856 | Y72: 0.845 | Z72: 0.844 | AA72: 0.8539 | AB72: 0.8522 | AC72: 0.8151 | AD72: 0.8111 | AE72: 0.8062 | AF72: 0.7972 | AG72: 0.7557963913 | AH72: 0.7563785096 | AI72: 0.7574608083 | AJ72: 0.7586670871 | AK72: 0.737480429 | AL72: 0.7360299523 | AM72: 0.7364159727 | AN72: 0.7328886547 | AO72: 0.7143758305 | AP72: 0.7110443026 | AQ72: 0.7083146232 | AR72: 0.7094840756 | AS72: 0.6919952693 | AT72: 0.6916148464 | AU72: 0.6866493129 | AV72: 0.6794013867 | AW72: 0.678507525 | AX72: 0.6703140791 | AY72: 0.6788408489 | AZ72: 0.6805596421 | BA72: 0.673797377 | BB72: 0.6719037483 | BC72: 0.6756258599 | BD72: 0.6665187962 | BE72: 0.6480273722 | BF72: 0.6353779073 | BG72: 0
A73: Weighted Average Halifax Indexed LTV | B73: 0.7595 | C73: 0.7391 | D73: 0.724 | E73: 0.7095 | F73: 0.7084 | G73: 0.723 | H73: 0.7433 | I73: 0.7663 | J73: 0.826 | K73: 0.8782 | L73: 0.9148 | M73: 0.9154 | N73: 0.8981 | O73: 0.8763 | P73: 0.8767 | Q73: 0.8675 | R73: 0.8763 | S73: 0.8882 | T73: 0.9079 | U73: 0.8982 | V73: 0.8928 | W73: 0.9064 | X73: 0.9048 | Y73: 0.9042 | Z73: 0.9063 | AA73: 0.9118 | AB73: 0.894 | AC73: 0.8703 | AD73: 0.851 | AE73: 0.8514 | AF73: 0.8362 | AG73: 0.8082198791 | AH73: 0.7864773973 | AI73: 0.7960069965 | AJ73: 0.7723039909 | AK73: 0.737666685 | AL73: 0.7320756232 | AM73: 0.7379844687 | AN73: 0.7150473812 | AO73: N/A | AP73: N/A | AQ73: N/A | AR73: N/A | AS73: N/A | AT73: N/A | AU73: N/A | AV73: N/A | AW73: N/A | AX73: N/A | AY73: N/A | AZ73: N/A | BA73: N/A | BB73: N/A | BC73: N/A | BD73: N/A | BE73: N/A | BF73: N/A | BG73: N/A
A74: % of Variable Rate Mortgages | B74: 0.0041 | C74: 0.0042 | D74: 0.0043 | E74: 0.0035 | F74: 0.0035 | G74: 0.0031 | H74: 0.0048 | I74: 0.0048 | J74: 0.005 | K74: 0.0026 | L74: 0.0026 | M74: 0.0026 | N74: 0.0025 | O74: 0.0025 | P74: 0.0025 | Q74: 0.0025 | R74: 0.0025 | S74: 0.0025 | T74: 0.0025 | U74: 0.002 | V74: 0.002 | W74: 0.002 | X74: 0.002 | Y74: 0.002 | Z74: 0.002 | AA74: 0.002 | AB74: 0.002 | AC74: 0.002 | AD74: 0.002 | AE74: 0.0021 | AF74: 0.0021 | AG74: 0.002073115624 | AH74: 0.0005855318427 | AI74: 0.0005898950665 | AJ74: 0.0005923415548 | AK74: 0.0005942992698 | AL74: 0.0004663708139 | AM74: 0.0004691445853 | AN74: 0.0003026530986 | AO74: 0.0003025423494 | AP74: 0.0003014399296 | AQ74: 0.0003010640372 | AR74: 0.0002993457119 | AS74: 0.0002964807563 | AT74: 0.0002948687452 | AU74: 0.0002946320127 | AV74: 0.0002933712238 | AW74: 0.0001202526587 | AX74: 0.0001186924289 | AY74: 3.649880146e-05 | AZ74: 3.420107862e-05 | BA74: 3.192523761e-05 | BB74: 2.938326776e-05 | BC74: 2.675676242e-05 | BD74: 2.388128425e-05 | BE74: 2.099266774e-05 | BF74: 1.804936767e-05 | BG74: 1.804936767e-05
A75: % of Fixed Rate Mortgages | B75: 0.5022 | C75: 0.5182 | D75: 0.5241 | E75: 0.5314 | F75: 0.5359 | G75: 0.5318 | H75: 0.516 | I75: 0.3772 | J75: 0.3315 | K75: 0.2903 | L75: 0.1746 | M75: 0.0958 | N75: 0.0568 | O75: 0.0446 | P75: 0.0157 | Q75: 0.016 | R75: 0.0071 | S75: 0.0059 | T75: 0.0052 | U75: 0.0037 | V75: 0.003 | W75: 0.0031 | X75: 0.0031 | Y75: 0.0028 | Z75: 0.0028 | AA75: 0.0028 | AB75: 0 | AC75: 0 | AD75: 0 | AE75: 0 | AF75: 0 | AG75: 0 | AH75: 0 | AI75: 0 | AJ75: 0 | AK75: 0 | AL75: 0 | AM75: 0 | AN75: 0 | AO75: 0 | AP75: 0 | AQ75: 0 | AR75: 0 | AS75: 0 | AT75: 0 | AU75: 0 | AV75: 0 | AW75: 0.004941022433 | AX75: 0.005045725857 | AY75: 0.005098104313 | AZ75: 0.005165029614 | BA75: 0.005250509669 | BB75: 0.005310709776 | BC75: 0.005175291722 | BD75: 0.005209589226 | BE75: 0.00526058188 | BF75: 0.005321181893 | BG75: 0
A76: % of Base Rate Mortgages | B76: 0.2113 | C76: 0.2228 | D76: 0.2433 | E76: 0.2389 | F76: 0.2494 | G76: 0.2488 | H76: 0.2435 | I76: 0.2426 | J76: 0.2381 | K76: 0.2407 | L76: 0.2418 | M76: 0.2424 | N76: 0.2421 | O76: 0.2432 | P76: 0.2429 | Q76: 0.2428 | R76: 0.2429 | S76: 0.2432 | T76: 0.2447 | U76: 0.2448 | V76: 0.2452 | W76: 0.2461 | X76: 0.2459 | Y76: 0.2464 | Z76: 0.2464 | AA76: 0.2467 | AB76: 0.2465 | AC76: 0.2453 | AD76: 0.2459 | AE76: 0.2465 | AF76: 0.2468 | AG76: 0.2475924292 | AH76: 0.2482943789 | AI76: 0.2486523866 | AJ76: 0.2503556568 | AK76: 0.2495592532 | AL76: 0.2491304311 | AM76: 0.2491605412 | AN76: 0.2479258539 | AO76: 0.2485586129 | AP76: 0.2465096343 | AQ76: 0.2449602005 | AR76: 0.2464103262 | AS76: 0.2457511656 | AT76: 0.2448221257 | AU76: 0.2458285553 | AV76: 0.2457643375 | AW76: 0.2446140098 | AX76: 0.2467968704 | AY76: 0.2460864538 | AZ76: 0.2449651204 | BA76: 0.2446034545 | BB76: 0.2438122893 | BC76: 0.2445005397 | BD76: 0.2450904595 | BE76: 0.2439209938 | BF76: 0.2434921749 | BG76: 0
A77: % of Libor Linked Mortgages | B77: 0.2824 | C77: 0.2548 | D77: 0.2283 | E77: 0.2262 | F77: 0.211 | G77: 0.2162 | H77: 0.2358 | I77: 0.3754 | J77: 0.4254 | K77: 0.4664 | L77: 0.581 | M77: 0.6593 | N77: 0.6987 | O77: 0.7096 | P77: 0.7389 | Q77: 0.7387 | R77: 0.7474 | S77: 0.7485 | T77: 0.7477 | U77: 0.7494 | V77: 0.7498 | W77: 0.7489 | X77: 0.749 | Y77: 0.7488 | Z77: 0.7488 | AA77: 0.7485 | AB77: 0.7515 | AC77: 0.7527 | AD77: 0.7521 | AE77: 0.7515 | AF77: 0.7511 | AG77: 0.7503344552 | AH77: 0.7511200892 | AI77: 0.7507577183 | AJ77: 0.7490520016 | AK77: 0.7498464475 | AL77: 0.7504031981 | AM77: 0.7503703142 | AN77: 0.751771493 | AO77: 0.7511388447 | AP77: 0.7531889258 | AQ77: 0.7547387355 | AR77: 0.7532903281 | AS77: 0.7539523537 | AT77: 0.7548830056 | AU77: 0.7538768127 | AV77: 0.7539422913 | AW77: 0.7503247151 | AX77: 0.7480387113 | AY77: 0.7487789431 | AZ77: 0.7498356489 | BA77: 0.7501141106 | BB77: 0.7508476177 | BC77: 0.7502974118 | BD77: 0.74967607 | BE77: 0.7507974316 | BF77: 0.7511685939 | BG77: 0
A78: Weighted Average Loan Size | B78: 124218 | C78: 125538.19 | D78: 126814.84 | E78: 128075.52 | F78: 129888.31 | G78: 131010.74 | H78: 132345.08 | I78: 133099.88 | J78: 133974.61 | K78: 133670.03 | L78: 133591.47 | M78: 133612.62 | N78: 133545.57 | O78: 133416.67 | P78: 133552.52 | Q78: 133735.28 | R78: 133703.51 | S78: 133707.38 | T78: 133512.4 | U78: 133496.79 | V78: 133502.85 | W78: 133024.43 | X78: 133203.93 | Y78: 133045.84 | Z78: 133038.21 | AA78: 133010.83 | AB78: 132891.5 | AC78: 132968.98 | AD78: 133120.78 | AE78: 133089.02 | AF78: 133015.24 | AG78: 132823.2674 | AH78: 132689.0049 | AI78: 132906.699 | AJ78: 133060.6152 | AK78: 133144.8976 | AL78: 133240.0459 | AM78: 132949.4189 | AN78: 132702.173 | AO78: 132727.5813 | AP78: 132505.8851 | AQ78: 132399.4632 | AR78: 132384.0927 | AS78: 132434.1795 | AT78: 132783.1768 | AU78: 132621.5423 | AV78: 132918.5819 | AW78: 133160.2557 | AX78: 132483.9681 | AY78: 132536.9182 | AZ78: 132390.1346 | BA78: 132439.0857 | BB78: 132630.6526 | BC78: 132676.1017 | BD78: 132632.758 | BE78: 133099.9214 | BF78: 133168.074 | BG78: 0
A79: Weighted Average Interest Rate | B79: 0.05552 | C79: 0.0564 | D79: 0.05754 | E79: 0.05895 | F79: 0.05895 | G79: 0.05757 | H79: 0.05778 | I79: 0.06149 | J79: 0.06194 | K79: 0.04176 | L79: 0.03332 | M79: 0.02865 | N79: 0.0238 | O79: 0.0242 | P79: 0.0234 | Q79: 0.0241 | R79: 0.02385 | S79: 0.02387 | T79: 0.02456 | U79: 0.0245 | V79: 0.02529 | W79: 0.02606 | X79: 0.026 | Y79: 0.02457 | Z79: 0.02231 | AA79: 0.02225 | AB79: 0.02219 | AC79: 0.0222 | AD79: 0.0222 | AE79: 0.02221 | AF79: 0.02221 | AG79: 0.02221081813 | AH79: 0.02221433571 | AI79: 0.02221641248 | AJ79: 0.02222543712 | AK79: 0.02223199309 | AL79: 0.02223060918 | AM79: 0.02223154516 | AN79: 0.02223127517 | AO79: 0.02163270879 | AP79: 0.02034797969 | AQ79: 0.02029265506 | AR79: 0.02029833031 | AS79: 0.02023828059 | AT79: 0.02091138366 | AU79: 0.02243045775 | AV79: 0.02394933528 | AW79: 0.02395917443 | AX79: 0.02545269541 | AY79: 0.02621470003 | AZ79: 0.0255123705 | BA79: 0.02480258806 | BB79: 0.02481825697 | BC79: 0.0248134796 | BD79: 0.02173035198 | BE79: 0.01868206445 | BF79: 0.01789394685 | BG79: 0
A80: Weighted Average Maturity Date (years) | B80: 20.93 | C80: 20.69 | D80: 20.47 | E80: 20.24 | F80: 20.04 | G80: 19.79 | H80: 19.55 | I80: 19.32 | J80: 19.06 | K80: 18.83 | L80: 18.58 | M80: 18.33 | N80: 18.09 | O80: 17.85 | P80: 17.6 | Q80: 17.36 | R80: 17.11 | S80: 16.86 | T80: 16.62 | U80: 16.38 | V80: 16.15 | W80: 15.9 | X80: 15.66 | Y80: 15.42 | Z80: 15.18 | AA80: 14.93 | AB80: 14.7 | AC80: 14.46 | AD80: 14.21 | AE80: 13.97 | AF80: 13.73 | AG80: 13.49819737 | AH80: 13.28103102 | AI80: 13.02778475 | AJ80: 12.78286043 | AK80: 12.55745027 | AL80: 12.32562065 | AM80: 12.11654392 | AN80: 11.89255047 | AO80: 11.73997168 | AP80: 11.57000825 | AQ80: 11.31626106 | AR80: 11.08790923 | AS80: 10.85247654 | AT80: 10.64207289 | AU80: 10.4263173 | AV80: 10.25911178 | AW80: 10.16234482 | AX80: 9.951887374 | AY80: 9.72289177 | AZ80: 9.481095268 | BA80: 9.250202009 | BB80: 9.006343896 | BC80: 8.777005109 | BD80: 8.538149667 | BE80: 8.30441692 | BF80: 8.065660492 | BG80: 0
A81: Weighted Average Seasoning (months) | B81: 13.31 | C81: 15.85 | D81: 18.52 | E81: 21.14 | F81: 23.76 | G81: 26.48 | H81: 29.31 | I81: 32.3 | J81: 35.54 | K81: 38.47 | L81: 41.46 | M81: 44.47 | N81: 47.48 | O81: 50.41 | P81: 53.42 | Q81: 56.43 | R81: 59.46 | S81: 62.43 | T81: 65.47 | U81: 68.47 | V81: 71.44 | W81: 74.45 | X81: 77.43 | Y81: 80.47 | Z81: 83.51 | AA81: 86.48 | AB81: 89.46 | AC81: 92.5 | AD81: 95.54 | AE81: 98.51 | AF81: 101.52 | AG81: 104.5358648 | AH81: 107.5868995 | AI81: 110.5937194 | AJ81: 113.5485513 | AK81: 116.5848097 | AL81: 119.637847 | AM81: 122.6717003 | AN81: 125.6712961 | AO81: 128.6618404 | AP81: 131.7623717 | AQ81: 134.8001946 | AR81: 137.7063284 | AS81: 140.7852773 | AT81: 143.7778152 | AU81: 146.6597867 | AV81: 149.6217894 | AW81: 152.6523501 | AX81: 155.5970235 | AY81: 158.5529941 | AZ81: 161.5354012 | BA81: 164.6056271 | BB81: 167.6401577 | BC81: 170.6302263 | BD81: 173.6133291 | BE81: 176.5530551 | BF81: 179.5865628 | BG81: 0
A82: % of Interest Only Mortgages | B82: 0.9409 | C82: 0.9415 | D82: 0.9427 | E82: 0.9438 | F82: 0.9488 | G82: 0.9522 | H82: 0.9548 | I82: 0.9556 | J82: 0.9584 | K82: 0.9602 | L82: 0.9605 | M82: 0.9614 | N82: 0.9619 | O82: 0.9626 | P82: 0.9628 | Q82: 0.9642 | R82: 0.9633 | S82: 0.9637 | T82: 0.9642 | U82: 0.9645 | V82: 0.9648 | W82: 0.9652 | X82: 0.9657 | Y82: 0.9664 | Z82: 0.9671 | AA82: 0.9675 | AB82: 0.9677 | AC82: 0.9682 | AD82: 0.9691 | AE82: 0.9697 | AF82: 0.9699 | AG82: 0.9704259858 | AH82: 0.9717723111 | AI82: 0.9733598294 | AJ82: 0.9742004329 | AK82: 0.9742214777 | AL82: 0.9743725741 | AM82: 0.9747104089 | AN82: 0.9749093942 | AO82: 0.9748210291 | AP82: 0.9752025073 | AQ82: 0.9754685139 | AR82: 0.9755782166 | AS82: 0.9759552391 | AT82: 0.9766673123 | AU82: 0.9765786284 | AV82: 0.974801455 | AW82: 0.9749656977 | AX82: 0.9757304636 | AY82: 0.9761034981 | AZ82: 0.9768072323 | BA82: 0.9792171323 | BB82: 0.9799287114 | BC82: 0.9805588798 | BD82: 0.9812198562 | BE82: 0.9819505078 | BF82: 0.9817793031 | BG82: 0
A83: % of Repayment Mortgages | B83: 0.0591 | C83: 0.0585 | D83: 0.0573 | E83: 0.0562 | F83: 0.0512 | G83: 0.0478 | H83: 0.0452 | I83: 0.0444 | J83: 0.0416 | K83: 0.0398 | L83: 0.0395 | M83: 0.0386 | N83: 0.0381 | O83: 0.0374 | P83: 0.0372 | Q83: 0.0358 | R83: 0.0367 | S83: 0.0363 | T83: 0.0358 | U83: 0.0355 | V83: 0.0352 | W83: 0.0348 | X83: 0.0343 | Y83: 0.0336 | Z83: 0.0329 | AA83: 0.0325 | AB83: 0.0323 | AC83: 0.0318 | AD83: 0.0309 | AE83: 0.0303 | AF83: 0.0301 | AG83: 0.02957401425 | AH83: 0.0282276889 | AI83: 0.02664017061 | AJ83: 0.0257995671 | AK83: 0.02577852229 | AL83: 0.02562742586 | AM83: 0.0252895911 | AN83: 0.02509060579 | AO83: 0.02517897094 | AP83: 0.0247974927 | AQ83: 0.02453148605 | AR83: 0.02442178337 | AS83: 0.02404476086 | AT83: 0.02333268767 | AU83: 0.02342137164 | AV83: 0.02519854504 | AW83: 0.02503430235 | AX83: 0.02426953644 | AY83: 0.02389650188 | AZ83: 0.02319276767 | BA83: 0.02078286772 | BB83: 0.02007128864 | BC83: 0.01944112024 | BD83: 0.01878014382 | BE83: 0.01804949221 | BF83: 0.01822069695 | BG83: 0
A84: % of Mortgages in London | B84: 0.141 | C84: 0.14 | D84: 0.1397 | E84: 0.1417 | F84: 0.142 | G84: 0.1432 | H84: 0.1428 | I84: 0.1403 | J84: 0.1395 | K84: 0.1389 | L84: 0.1371 | M84: 0.1363 | N84: 0.1348 | O84: 0.1324 | P84: 0.1324 | Q84: 0.1324 | R84: 0.1323 | S84: 0.1321 | T84: 0.1325 | U84: 0.1321 | V84: 0.1314 | W84: 0.1291 | X84: 0.1296 | Y84: 0.1295 | Z84: 0.1296 | AA84: 0.1299 | AB84: 0.1298 | AC84: 0.1303 | AD84: 0.1309 | AE84: 0.1305 | AF84: 0.1297 | AG84: 0.1299954251 | AH84: 0.1302535008 | AI84: 0.1298697039 | AJ84: 0.1276452538 | AK84: 0.127427495 | AL84: 0.1271198553 | AM84: 0.1271482366 | AN84: 0.1257688298 | AO84: 0.1246263193 | AP84: 0.1233144396 | AQ84: 0.1234259058 | AR84: 0.1240511346 | AS84: 0.1244130208 | AT84: 0.1267310514 | AU84: 0.1262046068 | AV84: 0.1269798052 | AW84: 0.127001511 | AX84: 0.1241995163 | AY84: 0.1244813673 | AZ84: 0.1246081269 | BA84: 0.1225361492 | BB84: 0.1225781862 | BC84: 0.1236114234 | BD84: 0.1237346515 | BE84: 0.1245450311 | BF84: 0.1242778152 | BG84: 0
A85: % of Mortgages in the South East | B85: 0.2045 | C85: 0.2017 | D85: 0.1976 | E85: 0.197 | F85: 0.1965 | G85: 0.1955 | H85: 0.1961 | I85: 0.1942 | J85: 0.1901 | K85: 0.1907 | L85: 0.1911 | M85: 0.1908 | N85: 0.1905 | O85: 0.1911 | P85: 0.191 | Q85: 0.1914 | R85: 0.1918 | S85: 0.1918 | T85: 0.1928 | U85: 0.1926 | V85: 0.1922 | W85: 0.1929 | X85: 0.1928 | Y85: 0.1929 | Z85: 0.1929 | AA85: 0.1924 | AB85: 0.1925 | AC85: 0.1914 | AD85: 0.1916 | AE85: 0.1913 | AF85: 0.1908 | AG85: 0.1904480668 | AH85: 0.1899622515 | AI85: 0.1894489627 | AJ85: 0.1904191808 | AK85: 0.1885944914 | AL85: 0.1879249648 | AM85: 0.1873819071 | AN85: 0.1861451018 | AO85: 0.1848060322 | AP85: 0.1845220573 | AQ85: 0.1827824772 | AR85: 0.1811603223 | AS85: 0.1808859514 | AT85: 0.1789707554 | AU85: 0.178084083 | AV85: 0.1781279653 | AW85: 0.1789626816 | AX85: 0.1784509866 | AY85: 0.1774473164 | AZ85: 0.1755815695 | BA85: 0.1750702627 | BB85: 0.1745759547 | BC85: 0.1733701068 | BD85: 0.1734005205 | BE85: 0.1732809663 | BF85: 0.1719469181 | BG85: 0
A86: % of Owner Occupied Mortgages | B86: 0 | C86: 0 | D86: 0 | E86: 0 | F86: 0 | G86: 0 | H86: 0 | I86: 0 | J86: 0 | K86: 0 | L86: 0 | M86: 0 | N86: 0 | O86: 0 | P86: 0 | Q86: 0 | R86: 0 | S86: 0 | T86: 0 | U86: 0 | V86: 0 | W86: 0 | X86: 0 | Y86: 0 | Z86: 0 | AA86: 0 | AB86: 0 | AC86: 0 | AD86: 0 | AE86: 0 | AF86: 0 | AG86: 0 | AH86: 0 | AI86: 0 | AJ86: 0 | AK86: 0 | AL86: 0 | AM86: 0 | AN86: 0 | AO86: 0 | AP86: 0 | AQ86: 0 | AR86: 0 | AS86: 0 | AT86: 0 | AU86: 0 | AV86: 0 | AW86: 0 | AX86: 0 | AY86: 0 | AZ86: 0 | BA86: 0 | BB86: 0 | BC86: 0 | BD86: 0 | BE86: 0 | BF86: 0 | BG86: 0
A87: % of Investment Home Loans - Professional Landlords | B87: 0.7922 | C87: 0.7887 | D87: 0.787 | E87: 0.784 | F87: 0.781 | G87: 0.7785 | H87: 0.7777 | I87: 0.7802 | J87: 0.7894 | K87: 0.7902 | L87: 0.7919 | M87: 0.7926 | N87: 0.7943 | O87: 0.7939 | P87: 0.7944 | Q87: 0.795 | R87: 0.7949 | S87: 0.7952 | T87: 0.7939 | U87: 0.7945 | V87: 0.7952 | W87: 0.7983 | X87: 0.7987 | Y87: 0.7993 | Z87: 0.8001 | AA87: 0.8 | AB87: 0.8005 | AC87: 0.8018 | AD87: 0.802 | AE87: 0.8026 | AF87: 0.8038 | AG87: 0.8044057914 | AH87: 0.8059341012 | AI87: 0.8057977567 | AJ87: 0.8052644495 | AK87: 0.8062710509 | AL87: 0.8075480626 | AM87: 0.8094191536 | AN87: 0.8095828214 | AO87: 0.8104970477 | AP87: 0.8137372929 | AQ87: 0.8143486461 | AR87: 0.8156815754 | AS87: 0.8174774472 | AT87: 0.8175542104 | AU87: 0.8170049115 | AV87: 0.8176299047 | AW87: 0.8193518088 | AX87: 0.8218397042 | AY87: 0.8217562832 | AZ87: 0.8223350275 | BA87: 0.8248502457 | BB87: 0.8267477725 | BC87: 0.8270071075 | BD87: 0.8273900439 | BE87: 0.8270217347 | BF87: 0.8293684007 | BG87: 0
A88: % of Investment Home Loans - Emerging Professional Landlords | B88: 0.2078 | C88: 0.2113 | D88: 0.213 | E88: 0.216 | F88: 0.219 | G88: 0.2215 | H88: 0.2223 | I88: 0.2198 | J88: 0.2106 | K88: 0.2098 | L88: 0.2081 | M88: 0.2074 | N88: 0.2057 | O88: 0.2061 | P88: 0.2056 | Q88: 0.205 | R88: 0.2051 | S88: 0.2048 | T88: 0.2061 | U88: 0.2055 | V88: 0.2048 | W88: 0.2017 | X88: 0.2013 | Y88: 0.2007 | Z88: 0.1999 | AA88: 0.2 | AB88: 0.1995 | AC88: 0.1982 | AD88: 0.198 | AE88: 0.1974 | AF88: 0.1962 | AG88: 0.1955942086 | AH88: 0.1940658988 | AI88: 0.1942022433 | AJ88: 0.1947355505 | AK88: 0.1937289491 | AL88: 0.1924519374 | AM88: 0.1905808464 | AN88: 0.1904171786 | AO88: 0.1895029523 | AP88: 0.1862627071 | AQ88: 0.1856513539 | AR88: 0.1843184246 | AS88: 0.1825225528 | AT88: 0.1824457896 | AU88: 0.1829950885 | AV88: 0.1823700953 | AW88: 0.1806481912 | AX88: 0.1781602958 | AY88: 0.1782437168 | AZ88: 0.1776649725 | BA88: 0.1751497543 | BB88: 0.1732522275 | BC88: 0.1729928925 | BD88: 0.1726099561 | BE88: 0.1729782653 | BF88: 0.1706315993 | BG88: 0
A89: Weighted Average Interest Coverage Ratio (calculated at the origination date) | B89: 1.73 | C89: 1.73 | D89: 1.71 | E89: 1.69 | F89: 1.67 | G89: 1.67 | H89: 1.67 | I89: 1.68 | J89: 1.68 | K89: 1.68 | L89: 1.68 | M89: 1.68 | N89: 1.68 | O89: 1.68 | P89: 1.68 | Q89: 1.69 | R89: 1.69 | S89: 1.69 | T89: 1.69 | U89: 1.69 | V89: 1.69 | W89: 1.69 | X89: 1.69 | Y89: 1.69 | Z89: 1.69 | AA89: 1.69 | AB89: 1.69 | AC89: 1.69 | AD89: 1.69 | AE89: 1.69 | AF89: 1.69 | AG89: 1.689595831 | AH89: 1.685835705 | AI89: 1.686060596 | AJ89: 1.660692295 | AK89: 1.662364606 | AL89: 1.659776278 | AM89: 1.66128656 | AN89: 1.662647491 | AO89: 1.665326236 | AP89: 1.666266175 | AQ89: 1.666336078 | AR89: 1.66683729 | AS89: 1.668493408 | AT89: 1.669931595 | AU89: 1.666582845 | AV89: 1.666134728 | AW89: 1.666808202 | AX89: 1.66385649 | AY89: 1.664766155 | AZ89: 1.664089042 | BA89: 1.664722858 | BB89: 1.665216568 | BC89: 1.664312085 | BD89: 1.663668782 | BE89: 1.659958628 | BF89: 1.661236069 | BG89: 0
A90: PML Lifetime Redemption Rate | B90: 0.1225 | C90: 0.1249 | D90: 0.1146 | E90: 0.1126 | F90: 0.1085 | G90: 0.1011 | H90: 0.0959 | I90: 0.1001 | J90: 0.1063 | K90: 0.1002 | L90: 0.0927 | M90: 0.0868 | N90: 0.0822 | O90: 0.078 | P90: 0.0738 | Q90: 0.0701 | R90: 0.067 | S90: 0.0643 | T90: 0.0628 | U90: 0.0605 | V90: 0.0584 | W90: 0.057 | X90: 0.055 | Y90: 0.0538 | Z90: 0.0523 | AA90: 0.0507 | AB90: 0.0497 | AC90: 0.0487 | AD90: 0.0479 | AE90: 0.047 | AF90: 0.0463 | AG90: 0.0459 | AH90: 0.0455 | AI90: 0.0452 | AJ90: 0.0453 | AK90: 0.0452 | AL90: 0.0447 | AM90: 0.0452 | AN90: 0.0451 | AO90: 0.0456 | AP90: 0.0458 | AQ90: 0.0463 | AR90: 0.0464 | AS90: 0.0462 | AT90: 0.046 | AU90: 0.046 | AV90: 0.0459 | AW90: 0.0459 | AX90: 0.0466 | AY90: 0.0465 | AZ90: 0.0466 | BA90: 0.0469 | BB90: 0.0469 | BC90: 0.0468 | BD90: 0.0465 | BE90: 0.0463 | BF90: 0.0463 | BG90: 0
A91: Number of Properties in Possession | B91: 0 | C91: 0 | D91: 0 | E91: 0 | F91: 0 | G91: 0 | H91: 0 | I91: 0 | J91: 0 | K91: 0 | L91: 0 | M91: 0 | N91: 0 | O91: 0 | P91: 0 | Q91: 0 | R91: 0 | S91: 0 | T91: 0 | U91: 0 | V91: 1 | W91: 1 | X91: 1 | Y91: 1 | Z91: 1 | AA91: 1 | AB91: 1 | AC91: 0 | AD91: 1 | AE91: 2 | AF91: 1 | AG91: 0 | AH91: 2 | AI91: 2 | AJ91: 0 | AK91: 0 | AL91: 0 | AM91: 0 | AN91: 0 | AO91: 0 | AP91: 0 | AQ91: 0 | AR91: 0 | AS91: 0 | AT91: 0 | AU91: 0 | AV91: 0 | AW91: 0 | AX91: 0 | AY91: 0 | AZ91: 0 | BA91: 0 | BB91: 0 | BC91: 0 | BD91: 0 | BE91: 0 | BF91: 0 | BG91: 0
A92: Appointment of a Receiver of Rent | B92: 0 | C92: 13 | D92: 13 | E92: 17 | F92: 19 | G92: 32 | H92: 36 | I92: 91 | J92: 226 | K92: 249 | L92: 269 | M92: 274 | N92: 272 | O92: 173 | P92: 166 | Q92: 161 | R92: 154 | S92: 153 | T92: 158 | U92: 151 | V92: 160 | W92: 159 | X92: 161 | Y92: 152 | Z92: 146 | AA92: 146 | AB92: 147 | AC92: 153 | AD92: 146 | AE92: 146 | AF92: 151 | AG92: 141 | AH92: 134 | AI92: 122 | AJ92: 116 | AK92: 114 | AL92: 113 | AM92: 110 | AN92: 107 | AO92: 110 | AP92: 109 | AQ92: 102 | AR92: 103 | AS92: 101 | AT92: 99 | AU92: 94 | AV92: 88 | AW92: 87 | AX92: 80 | AY92: 79 | AZ92: 78 | BA92: 75 | BB92: 75 | BC92: 73 | BD92: 75 | BE92: 74 | BF92: 72 | BG92: 0
A93: PML Quarterly Losses | B93: 0 | C93: 0 | D93: 0 | E93: 0 | F93: 0 | G93: 0 | H93: 4 | I93: 0 | J93: 0 | K93: 146 | L93: 154 | M93: 132 | N93: 197 | O93: 150 | P93: 594 | Q93: 215 | R93: 516 | S93: 243 | T93: 21 | U93: 169 | V93: 120 | W93: 272 | X93: -105 | Y93: 471 | Z93: 183 | AA93: 104 | AB93: 365 | AC93: 247 | AD93: 226 | AE93: 286 | AF93: 197 | AG93: 585 | AH93: 354 | AI93: 433 | AJ93: 473 | AK93: 167 | AL93: 13 | AM93: 9 | AN93: 37 | AO93: 137 | AP93: 194 | AQ93: 463 | AR93: -10 | AS93: 329 | AT93: 450 | AU93: 381 | AV93: 381 | AW93: 193 | AX93: 730 | AY93: 187 | AZ93: 21 | BA93: 528 | BB93: -16 | BC93: 497 | BD93: 0 | BE93: 163 | BF93: 39 | BG93: 0
A94: Arrears excluding Receiver of Rent and Possession Cases
A95: Performing Loans | B95: 0.9991 | C95: 0.9981 | D95: 0.9952 | E95: 0.9942 | F95: 0.9818 | G95: 0.9818 | H95: 0.9778 | I95: 0.9837 | J95: 0.9703 | K95: 0.9735 | L95: 0.9764 | M95: 0.9787 | N95: 0.9791 | O95: 0.9886 | P95: 0.9964 | Q95: 0.9917 | R95: 0.9907 | S95: 0.9928 | T95: 0.9922 | U95: 0.9895 | V95: 0.9911 | W95: 0.9913 | X95: 0.9892 | Y95: 0.9884 | Z95: 0.9895 | AA95: 0.994 | AB95: 0.9919 | AC95: 0.9982 | AD95: 0.9994 | AE95: 0.9991 | AF95: 0.9993 | AG95: 0.9992283249 | AH95: 0.9997648435 | AI95: 0.9980700502 | AJ95: 0.9998179688 | AK95: 0.9992416579 | AL95: 0.9995521727 | AM95: 0.9997060717 | AN95: 0.9997032892 | AO95: 0.9982529415 | AP95: 0.9986206229 | AQ95: 0.9995275383 | AR95: 1 | AS95: 0.998816557 | AT95: 0.9988215103 | AU95: 0.9995476707 | AV95: 0.9989337829 | AW95: 0.9963607821 | AX95: 0.9959923467 | AY95: 0.9932512348 | AZ95: 0.9929827105 | BA95: 0.9976771261 | BB95: 0.9965233305 | BC95: 0.983793036 | BD95: 0.9866565294 | BE95: 0.9949162294 | BF95: 0.994638462 | BG95: 0
A96: >1 to 2 months arrears | B96: 0.0009 | C96: 0.0008 | D96: 0.0037 | E96: 0.0058 | F96: 0.008 | G96: 0.0147 | H96: 0.016 | I96: 0.0083 | J96: 0.0185 | K96: 0.0177 | L96: 0.0148 | M96: 0.0166 | N96: 0.0147 | O96: 0.0049 | P96: 0.0016 | Q96: 0.0058 | R96: 0.0064 | S96: 0.0052 | T96: 0.0065 | U96: 0.008 | V96: 0.0081 | W96: 0.0077 | X96: 0.0098 | Y96: 0.0109 | Z96: 0.0087 | AA96: 0.0047 | AB96: 0.0058 | AC96: 0.0007 | AD96: 0.0004 | AE96: 0.0007 | AF96: 0.0004 | AG96: 0.0004305403016 | AH96: 0.0002351565281 | AI96: 0.001831340931 | AJ96: 0.0001820312168 | AK96: 0.0007583420853 | AL96: 0.0004478273117 | AM96: 0.0001374767086 | AN96: 0.0002967107734 | AO96: 0.001747058513 | AP96: 0.001082015981 | AQ96: 0.0002117554132 | AR96: 0 | AS96: 0.001183443039 | AT96: 0.00117848972 | AU96: 0.0001621709849 | AV96: 0.0007736262958 | AW96: 0.002153960704 | AX96: 0.003246478681 | AY96: 0.004322615109 | AZ96: 0.001356339836 | BA96: 0.001305613737 | BB96: 0.00287223631 | BC96: 0.01378200837 | BD96: 0.01003334716 | BE96: 0.003216049083 | BF96: 0.001367289119 | BG96: 0
A97: >2 to 3 months arrears | B97: 0 | C97: 0 | D97: 0 | E97: 0 | F97: 0.0098 | G97: 0.0035 | H97: 0.0062 | I97: 0.007 | J97: 0.0078 | K97: 0.0026 | L97: 0.0052 | M97: 0.0029 | N97: 0.005 | O97: 0.0056 | P97: 0.0011 | Q97: 0.0012 | R97: 0.0012 | S97: 0.0007 | T97: 0.0002 | U97: 0.0018 | V97: 0.0004 | W97: 0.0007 | X97: 0.0004 | Y97: 0.0003 | Z97: 0.0015 | AA97: 0.0002 | AB97: 0.0012 | AC97: 0 | AD97: 0 | AE97: 0 | AF97: 0 | AG97: 0 | AH97: 0 | AI97: 0 | AJ97: 0 | AK97: 0 | AL97: 0 | AM97: 0.0001564515597 | AN97: 0 | AO97: 0 | AP97: 0.0002086331558 | AQ97: 0.0002607062777 | AR97: 0 | AS97: 0 | AT97: 0 | AU97: 0.0002901583585 | AV97: 0 | AW97: 0.001208548501 | AX97: 0.0007611746377 | AY97: 0.002426150114 | AZ97: 0.005660949668 | BA97: 0.00070583199 | BB97: 0.0002893637498 | BC97: 0.001993421848 | BD97: 0.001084171591 | BE97: 0.001049921016 | BF97: 0.003851582668 | BG97: 0
A98: >3 months arrears | B98: 0 | C98: 0.0011 | D98: 0.0011 | E98: 0 | F98: 0.0004 | G98: 0 | H98: 0 | I98: 0.001 | J98: 0.0034 | K98: 0.0062 | L98: 0.0036 | M98: 0.0018 | N98: 0.0012 | O98: 0.0009 | P98: 0.0009 | Q98: 0.0013 | R98: 0.0017 | S98: 0.0013 | T98: 0.0011 | U98: 0.0007 | V98: 0.0004 | W98: 0.0003 | X98: 0.0006 | Y98: 0.0004 | Z98: 0.0003 | AA98: 0.0011 | AB98: 0.0011 | AC98: 0.0011 | AD98: 0.0002 | AE98: 0.0002 | AF98: 0.0003 | AG98: 0.0003411348238 | AH98: 0 | AI98: 9.860888541e-05 | AJ98: 0 | AK98: 0 | AL98: 0 | AM98: 0 | AN98: 0 | AO98: 0 | AP98: 8.872794861e-05 | AQ98: 0 | AR98: 0 | AS98: 0 | AT98: 0 | AU98: 0 | AV98: 0.0002925907822 | AW98: 0.0002767087305 | AX98: 0 | AY98: 0 | AZ98: 0 | BA98: 0.0003114282184 | BB98: 0.0003150694652 | BC98: 0.0004315337791 | BD98: 0.002225951808 | BE98: 0.0008178004942 | BF98: 0.0001426662095 | BG98: 0
A99: Total | B99: =SUM(B95:B98) -> 1 | C99: 1 | D99: 1 | E99: 1 | F99: 1 | G99: 1 | H99: 1 | I99: 1 | J99: 1 | K99: 1 | L99: 1 | M99: 1 | N99: 1 | O99: 1 | P99: 1 | Q99: 1 | R99: 1 | S99: 1 | T99: 1 | U99: 1 | V99: =SUM(V95:V98) -> 1 | W99: 1 | X99: 1 | Y99: 1 | Z99: 1 | AA99: 1 | AB99: =SUM(AB95:AB98) -> 1 | AC99: 1 | AD99: 1 | AE99: 1 | AF99: 1 | AG99: 1 | AH99: 1 | AI99: 1 | AJ99: 1 | AK99: 1 | AL99: 1 | AM99: 1 | AN99: 1 | AO99: 1 | AP99: 1 | AQ99: 1 | AR99: 1 | AS99: 1 | AT99: 1 | AU99: 1 | AV99: 1 | AW99: 1 | AX99: 1 | AY99: 1 | AZ99: 1 | BA99: 1 | BB99: 1 | BC99: 1 | BD99: 1 | BE99: 1 | BF99: 1 | BG99: =SUM(BG95:BG98) -> 0
A101: Underlying Assets - Mortgage Trust Originated Assets | B101: 2006-12-31 | C101: 2007-03-31 | D101: 2007-06-29 | E101: 2007-09-28 | F101: 2007-12-31 | G101: 2008-03-31 | H101: 2008-06-30 | I101: 2008-09-30 | J101: 2008-12-31 | K101: 2009-03-31 | L101: 2009-06-30 | M101: 2009-09-30 | N101: 2009-12-31 | O101: 2010-03-31 | P101: 2010-06-30 | Q101: 2010-09-30 | R101: 2010-12-31 | S101: 2011-03-31 | T101: 2011-06-30 | U101: 2011-09-30 | V101: 2011-12-30 | W101: 2012-03-30 | X101: 2012-06-29 | Y101: 2012-09-28 | Z101: 2012-12-31 | AA101: 2013-03-28 | AB101: 2013-06-28 | AC101: 2013-09-30 | AD101: 2013-12-31 | AE101: 2014-03-31 | AF101: 2014-06-30 | AG101: 2014-09-30 | AH101: 2014-12-31 | AI101: 2015-03-31 | AJ101: 2015-06-30 | AK101: =+AK70 -> 2015-09-30 | AL101: 2015-12-31 | AM101: 2016-03-31 | AN101: 2016-06-30 | AO101: 2016-09-30 | AP101: 2016-12-30 | AQ101: =+AQ70 -> 2017-03-31 | AR101: 2017-06-30 | AS101: =+AS70 -> 2017-09-29 | AT101: 2017-12-29 | AU101: =+AU70 -> 2018-03-29 | AV101: 2018-06-29 | AW101: =+AW70 -> 2018-09-28 | AX101: 2018-12-31 | AY101: =+AY70 -> 2019-03-29 | AZ101: 2019-06-28 | BA101: =+BA70 -> 2019-09-30 | BB101: 2019-12-31 | BC101: =+BC70 -> 2020-03-31 | BD101: 2020-06-30 | BE101: =+BE70 -> 2020-09-30 | BF101: 2020-12-31 | BG101: =+BG70 -> 2021-03-31
A102: Weighted Average LTV | B102: 0.7699 | C102: 0.7708 | D102: 0.7713 | E102: 0.7727 | F102: 0.7736 | G102: 0.7739 | H102: 0.774 | I102: 0.774 | J102: 0.7738 | K102: 0.7743 | L102: 0.7742 | M102: 0.7746 | N102: 0.7748 | O102: 0.7748 | P102: 0.7739 | Q102: 0.7739 | R102: 0.7744 | S102: 0.7746 | T102: 0.7744 | U102: 0.7743 | V102: 0.7748 | W102: 0.7748 | X102: 0.7745 | Y102: 0.7744 | Z102: 0.7742 | AA102: 0.7741 | AB102: 0.774 | AC102: 0.7752 | AD102: 0.7753 | AE102: 0.7751 | AF102: 0.7754 | AG102: 0.7749327171 | AH102: 0.7748414359 | AI102: 0.7746756712 | AJ102: 0.7742084687 | AK102: 0.7728440102 | AL102: 0.7721247866 | AM102: 0.7717228724 | AN102: 0.7711165598 | AO102: 0.7703169613 | AP102: 0.7712866281 | AQ102: 0.7701017812 | AR102: 0.7700492101 | AS102: 0.7700690522 | AT102: 0.7702314047 | AU102: 0.7704750237 | AV102: 0.7699699236 | AW102: 0.7708582202 | AX102: 0.7708644907 | AY102: 0.7707460046 | AZ102: 0.7700781581 | BA102: 0.771417485 | BB102: 0.7700885746 | BC102: 0.7709197445 | BD102: 0.7712577914 | BE102: 0.7721392431 | BF102: 0.7721896519 | BG102: 0
A103: Weighted Average Nationwide Indexed LTV | B103: 0.7218 | C103: 0.7091 | D103: 0.6972 | E103: 0.678 | F103: 0.6707 | G103: 0.6728 | H103: 0.6882 | I103: 0.7133 | J103: 0.77 | K103: 0.7923 | L103: 0.8359 | M103: 0.8047 | N103: 0.7752 | O103: 0.7579 | P103: 0.7577 | Q103: 0.7352 | R103: 0.7577 | S103: 0.7582 | T103: 0.7408 | U103: 0.743 | V103: 0.7463 | W103: 0.7624 | X103: 0.7631 | Y103: 0.7536 | Z103: 0.7526 | AA103: 0.7617 | AB103: 0.7599 | AC103: 0.7247 | AD103: 0.7236 | AE103: 0.7084 | AF103: 0.6956 | AG103: 0.6538431458 | AH103: 0.6549383305 | AI103: 0.6545060133 | AJ103: 0.6565094935 | AK103: 0.636599741 | AL103: 0.633886467 | AM103: 0.6314091303 | AN103: 0.6277361546 | AO103: 0.6103717067 | AP103: 0.6065042846 | AQ103: 0.6021749666 | AR103: 0.602433186 | AS103: 0.5898596301 | AT103: 0.5903234553 | AU103: 0.5872286697 | AV103: 0.5814315546 | AW103: 0.5818365848 | AX103: 0.5786060031 | AY103: 0.5886730238 | AZ103: 0.5879598684 | BA103: 0.5813377778 | BB103: 0.5802685737 | BC103: 0.5847200114 | BD103: 0.5794640789 | BE103: 0.5597446903 | BF103: 0.5487294394 | BG103: 0
A104: Weighted Average Halifax Indexed LTV | B104: 0.7235 | C104: 0.699 | D104: 0.6817 | E104: 0.6653 | F104: 0.6589 | G104: 0.6769 | H104: 0.6941 | I104: 0.715 | J104: 0.7647 | K104: 0.8187 | L104: 0.8519 | M104: 0.8459 | N104: 0.8222 | O104: 0.7999 | P104: 0.7953 | Q104: 0.7852 | R104: 0.7988 | S104: 0.8088 | T104: 0.8202 | U104: 0.815 | V104: 0.8116 | W104: 0.8108 | X104: 0.8153 | Y104: 0.8153 | Z104: 0.8148 | AA104: 0.8201 | AB104: 0.8043 | AC104: 0.7824 | AD104: 0.7666 | AE104: 0.7608 | AF104: 0.7435 | AG104: 0.7166520604 | AH104: 0.6914063811 | AI104: 0.6976900667 | AJ104: 0.6824895787 | AK104: 0.6503729328 | AL104: 0.6432977881 | AM104: 0.6433376879 | AN104: 0.6195081884 | AO104: N/A | AP104: N/A | AQ104: N/A | AR104: N/A | AS104: N/A | AT104: N/A | AU104: N/A | AV104: N/A | AW104: N/A | AX104: N/A | AY104: N/A | AZ104: N/A | BA104: N/A | BB104: N/A | BC104: N/A | BD104: N/A | BE104: N/A | BF104: N/A | BG104: N/A
A105: % of Variable Rate Mortgages | B105: 0.0298 | C105: 0.0285 | D105: 0.0257 | E105: 0.024 | F105: 0.0229 | G105: 0.0229 | H105: 0.0237 | I105: 0.0236 | J105: 0.0257 | K105: 0.0303 | L105: 0.0292 | M105: 0.0275 | N105: 0.0272 | O105: 0.0266 | P105: 0.0253 | Q105: 0.0238 | R105: 0.0234 | S105: 0.023 | T105: 0.0218 | U105: 0.0206 | V105: 0.0189 | W105: 0.0177 | X105: 0.0175 | Y105: 0.0171 | Z105: 0.0165 | AA105: 0.0155 | AB105: 0.0147 | AC105: 0.0141 | AD105: 0.0133 | AE105: 0.0123 | AF105: 0.0122 | AG105: 0.01224245701 | AH105: 0.01137981889 | AI105: 0.01122464201 | AJ105: 0.01084198101 | AK105: 0.01073287427 | AL105: 0.01068823684 | AM105: 0.01077716452 | AN105: 0.0106630668 | AO105: 0.01056717646 | AP105: 0.01007410926 | AQ105: 0.009779551866 | AR105: 0.008565499682 | AS105: 0.008575848398 | AT105: 0.00845587808 | AU105: 0.007964973491 | AV105: 0.007949950137 | AW105: 0.007855064937 | AX105: 0.007777963067 | AY105: 0.00766168148 | AZ105: 0.007514820126 | BA105: 0.007595375507 | BB105: 0.007632721627 | BC105: 0.007715224614 | BD105: 0.007501351825 | BE105: 0.006664666088 | BF105: 0.006280626833 | BG105: 0
A106: % of Fixed Rate Mortgages | B106: 0.7914 | C106: 0.7972 | D106: 0.7952 | E106: 0.7633 | F106: 0.7995 | G106: 0.7391 | H106: 0.6598 | I106: 0.6523 | J106: 0.3354 | K106: 0.294 | L106: 0.1819 | M106: 0.1569 | N106: 0.1593 | O106: 0.1342 | P106: 0.0468 | Q106: 0.047 | R106: 0.04 | S106: 0.0296 | T106: 0.0154 | U106: 0.0059 | V106: 0.0052 | W106: 0.0042 | X106: 0.0039 | Y106: 0.0035 | Z106: 0.0036 | AA106: 0.0036 | AB106: 0 | AC106: 0 | AD106: 0 | AE106: 0 | AF106: 0 | AG106: 0 | AH106: 0 | AI106: 0 | AJ106: 0 | AK106: 0 | AL106: 0 | AM106: 0 | AN106: 0 | AO106: 0 | AP106: 0 | AQ106: 0 | AR106: 0 | AS106: 0 | AT106: 0 | AU106: 0 | AV106: 0 | AW106: 0 | AX106: 0 | AY106: 0 | AZ106: 0 | BA106: 0 | BB106: 0 | BC106: 0 | BD106: 0 | BE106: 0 | BF106: 0 | BG106: 0
A107: % of Base Rate Mortgages | B107: 0.0207 | C107: 0.0209 | D107: 0.0208 | E107: 0.0221 | F107: 0.0236 | G107: 0.0246 | H107: 0.0264 | I107: 0.0274 | J107: 0.0301 | K107: 0.0308 | L107: 0.0311 | M107: 0.0314 | N107: 0.0317 | O107: 0.032 | P107: 0.0324 | Q107: 0.0324 | R107: 0.0327 | S107: 0.0329 | T107: 0.0328 | U107: 0.0331 | V107: 0.0333 | W107: 0.0336 | X107: 0.0337 | Y107: 0.034 | Z107: 0.0344 | AA107: 0.0346 | AB107: 0.034 | AC107: 0.034 | AD107: 0.0344 | AE107: 0.0348 | AF107: 0.0352 | AG107: 0.0357899457 | AH107: 0.03632913478 | AI107: 0.03630167567 | AJ107: 0.0363095759 | AK107: 0.03682856218 | AL107: 0.0370974848 | AM107: 0.03731093008 | AN107: 0.0379478191 | AO107: 0.03841659922 | AP107: 0.03843247531 | AQ107: 0.03910259532 | AR107: 0.03998455064 | AS107: 0.04062343303 | AT107: 0.0410297573 | AU107: 0.04088536836 | AV107: 0.04147979014 | AW107: 0.04133963358 | AX107: 0.04229475799 | AY107: 0.04247058982 | AZ107: 0.04339388349 | BA107: 0.04368670359 | BB107: 0.04473684135 | BC107: 0.04495672867 | BD107: 0.04390916859 | BE107: 0.04435490409 | BF107: 0.04435094335 | BG107: 0
A108: % of Libor Linked Mortgages | B108: 0.158 | C108: 0.1535 | D108: 0.1583 | E108: 0.1906 | F108: 0.154 | G108: 0.2135 | H108: 0.2902 | I108: 0.2966 | J108: 0.6088 | K108: 0.6449 | L108: 0.7577 | M108: 0.7841 | N108: 0.7818 | O108: 0.8072 | P108: 0.8954 | Q108: 0.8967 | R108: 0.9039 | S108: 0.9144 | T108: 0.93 | U108: 0.9404 | V108: 0.9426 | W108: 0.9445 | X108: 0.9449 | Y108: 0.9454 | Z108: 0.9456 | AA108: 0.9463 | AB108: 0.9513 | AC108: 0.9519 | AD108: 0.9523 | AE108: 0.953 | AF108: 0.9525 | AG108: 0.9519675973 | AH108: 0.9522910463 | AI108: 0.9524736823 | AJ108: 0.9528484431 | AK108: 0.9524385636 | AL108: 0.9522142784 | AM108: 0.9519119054 | AN108: 0.9513891141 | AO108: 0.9510162243 | AP108: 0.9514934154 | AQ108: 0.9511178528 | AR108: 0.9514499497 | AS108: 0.9508007186 | AT108: 0.9505143646 | AU108: 0.9511496581 | AV108: 0.9505702597 | AW108: 0.9508053015 | AX108: 0.9499272789 | AY108: 0.9498677287 | AZ108: 0.9490912964 | BA108: 0.9487179209 | BB108: 0.947630437 | BC108: 0.9473280467 | BD108: 0.9485894796 | BE108: 0.9489804298 | BF108: 0.9493684298 | BG108: 0
A109: Weighted Average Loan Size | B109: 120604 | C109: 121181.1 | D109: 122439.46 | E109: 123270.18 | F109: 123690.45 | G109: 123208.97 | H109: 121451.91 | I109: 120888.85 | J109: 117730.86 | K109: 117281.36 | L109: 118008.45 | M109: 118103.92 | N109: 118186.58 | O109: 117889.77 | P109: 117661.93 | Q109: 117642.41 | R109: 117689.01 | S109: 117587.48 | T109: 117652.83 | U109: 117539.98 | V109: 117805.49 | W109: 118113.25 | X109: 118492.44 | Y109: 118525.34 | Z109: 118831.2 | AA109: 119051.6 | AB109: 119140.22 | AC109: 120174.76 | AD109: 120201.71 | AE109: 120382.11 | AF109: 120477.81 | AG109: 120599.9535 | AH109: 120475.5092 | AI109: 120545.9368 | AJ109: 120367.6159 | AK109: 120437.5724 | AL109: 120325.9594 | AM109: 119762.3081 | AN109: 119525.9423 | AO109: 119607.6161 | AP109: 119896.0847 | AQ109: 119841.0428 | AR109: 119754.2801 | AS109: 120004.9111 | AT109: 119581.2019 | AU109: 119666.3525 | AV109: 119329.3437 | AW109: 119036.5698 | AX109: 118698.3712 | AY109: 118519.607 | AZ109: 118450.1621 | BA109: 118337.2296 | BB109: 117799.6076 | BC109: 117348.9367 | BD109: 117514.7269 | BE109: 117325.051 | BF109: 117458.6005 | BG109: 0
A110: Weighted Average Interest Rate | B110: 0.05268 | C110: 0.05321 | D110: 0.0539 | E110: 0.05674 | F110: 0.05595 | G110: 0.05627 | H110: 0.05916 | I110: 0.05911 | J110: 0.05521 | K110: 0.04272 | L110: 0.03558 | M110: 0.03025 | N110: 0.02983 | O110: 0.0294 | P110: 0.02723 | Q110: 0.02728 | R110: 0.02723 | S110: 0.02758 | T110: 0.02738 | U110: 0.02762 | V110: 0.02894 | W110: 0.02905 | X110: 0.02843 | Y110: 0.02549 | Z110: 0.02395 | AA110: 0.02377 | AB110: 0.0236 | AC110: 0.02369 | AD110: 0.02375 | AE110: 0.02371 | AF110: 0.02379 | AG110: 0.0240901359 | AH110: 0.02401356534 | AI110: 0.02411068735 | AJ110: 0.02415685646 | AK110: 0.02432156757 | AL110: 0.02421044385 | AM110: 0.02436942135 | AN110: 0.0243515234 | AO110: 0.02244239053 | AP110: 0.02260585941 | AQ110: 0.02226861117 | AR110: 0.02166529128 | AS110: 0.0215235514 | AT110: 0.02396110647 | AU110: 0.02451336914 | AV110: 0.02484934447 | AW110: 0.02674369704 | AX110: 0.02768997985 | AY110: 0.02725951242 | AZ110: 0.0267355476 | BA110: 0.02648362146 | BB110: 0.02673298134 | BC110: 0.02496190236 | BD110: 0.02093038622 | BE110: 0.01944779857 | BF110: 0.01923166153 | BG110: 0
A111: Weighted Average Maturity Date (years) | B111: 20.1 | C111: 19.89 | D111: 19.72 | E111: 19.54 | F111: 19.34 | G111: 19.11 | H111: 18.82 | I111: 18.53 | J111: 18.18 | K111: 17.94 | L111: 17.69 | M111: 17.47 | N111: 17.24 | O111: 17 | P111: 16.8 | Q111: 16.57 | R111: 16.34 | S111: 16.11 | T111: 15.86 | U111: 15.62 | V111: 15.39 | W111: 15.15 | X111: 14.92 | Y111: 14.69 | Z111: 14.47 | AA111: 14.24 | AB111: 14.03 | AC111: 13.79 | AD111: 13.53 | AE111: 13.31 | AF111: 13.08 | AG111: 12.88553735 | AH111: 12.66683409 | AI111: 12.44193155 | AJ111: 12.2174117 | AK111: 11.96727872 | AL111: 11.74108283 | AM111: 11.51294232 | AN111: 11.3148693 | AO111: 11.16487005 | AP111: 10.9891735 | AQ111: 10.76221065 | AR111: 10.52881495 | AS111: 10.3152467 | AT111: 10.12116388 | AU111: 9.920468452 | AV111: 9.696751834 | AW111: 9.480485785 | AX111: 9.26903203 | AY111: 9.055791649 | AZ111: 8.86050358 | BA111: 8.672110091 | BB111: 8.483596448 | BC111: 8.285397624 | BD111: 8.057087781 | BE111: 7.844484761 | BF111: 7.636378722 | BG111: 0
A112: Weighted Average Seasoning (months) | B112: 18.84 | C112: 21.28 | D112: 23.45 | E112: 25.97 | F112: 28.51 | G112: 31.73 | H112: 35.3 | I112: 38.26 | J112: 42.84 | K112: 45.65 | L112: 48.63 | M112: 51.45 | N112: 54.34 | O112: 57.19 | P112: 60.04 | Q112: 62.89 | R112: 65.7 | S112: 68.67 | T112: 71.5 | U112: 74.38 | V112: 77.29 | W112: 80.14 | X112: 83.18 | Y112: 86.07 | Z112: 88.9 | AA112: 91.7 | AB112: 94.55 | AC112: 97.97 | AD112: 100.96 | AE112: 103.74 | AF112: 106.66 | AG112: 109.604311 | AH112: 112.4125817 | AI112: 115.228771 | AJ112: 118.1935684 | AK112: 121.2616246 | AL112: 124.2266658 | AM112: 127.261222 | AN112: 130.2317841 | AO112: 133.2109424 | AP112: 136.0106414 | AQ112: 138.7080336 | AR112: 141.5165976 | AS112: 144.4209841 | AT112: 147.3537533 | AU112: 150.1833831 | AV112: 153.1590971 | AW112: 156.1631545 | AX112: 159.1213396 | AY112: 162.0183629 | AZ112: 164.9953238 | BA112: 167.6806398 | BB112: 170.4356987 | BC112: 173.4257617 | BD112: 176.2202366 | BE112: 178.958703 | BF112: 181.5691262 | BG112: 0
A113: % of Interest Only Mortgages | B113: 0.9067 | C113: 0.9106 | D113: 0.9152 | E113: 0.9186 | F113: 0.9231 | G113: 0.9238 | H113: 0.9241 | I113: 0.9268 | J113: 0.9254 | K113: 0.9274 | L113: 0.9288 | M113: 0.9296 | N113: 0.9324 | O113: 0.9337 | P113: 0.9347 | Q113: 0.9363 | R113: 0.9376 | S113: 0.9382 | T113: 0.9399 | U113: 0.9418 | V113: 0.9434 | W113: 0.9448 | X113: 0.9459 | Y113: 0.9483 | Z113: 0.9488 | AA113: 0.9498 | AB113: 0.9513 | AC113: 0.9531 | AD113: 0.9537 | AE113: 0.9544 | AF113: 0.9549 | AG113: 0.9557260755 | AH113: 0.9558564842 | AI113: 0.9568031278 | AJ113: 0.9567423099 | AK113: 0.9573758193 | AL113: 0.9584748588 | AM113: 0.960073412 | AN113: 0.961119599 | AO113: 0.9616248009 | AP113: 0.9629960502 | AQ113: 0.963863245 | AR113: 0.964672353 | AS113: 0.9656641786 | AT113: 0.9665383674 | AU113: 0.9678120121 | AV113: 0.9677871075 | AW113: 0.9682890774 | AX113: 0.9686438117 | AY113: 0.9698813579 | AZ113: 0.9705490133 | BA113: 0.9706097548 | BB113: 0.9707021323 | BC113: 0.9712450762 | BD113: 0.9726992075 | BE113: 0.9733598277 | BF113: 0.9744758808 | BG113: 0
A114: % of Repayment Mortgages | B114: 0.0933 | C114: 0.0894 | D114: 0.0848 | E114: 0.0814 | F114: 0.0769 | G114: 0.0762 | H114: 0.0759 | I114: 0.0732 | J114: 0.0746 | K114: 0.0726 | L114: 0.0712 | M114: 0.0704 | N114: 0.0676 | O114: 0.0663 | P114: 0.0653 | Q114: 0.0637 | R114: 0.0624 | S114: 0.0618 | T114: 0.0601 | U114: 0.0582 | V114: 0.0566 | W114: 0.0552 | X114: 0.0541 | Y114: 0.0517 | Z114: 0.0512 | AA114: 0.0502 | AB114: 0.0487 | AC114: 0.0469 | AD114: 0.0463 | AE114: 0.0456 | AF114: 0.0451 | AG114: 0.04427392454 | AH114: 0.0441435158 | AI114: 0.0431968722 | AJ114: 0.04325769014 | AK114: 0.04262418072 | AL114: 0.04152514121 | AM114: 0.03992658798 | AN114: 0.03888040104 | AO114: 0.03837519908 | AP114: 0.03700394977 | AQ114: 0.03613675497 | AR114: 0.03532764704 | AS114: 0.03433582143 | AT114: 0.03346163263 | AU114: 0.03218798786 | AV114: 0.03221289255 | AW114: 0.03171092265 | AX114: 0.03135618834 | AY114: 0.03011864215 | AZ114: 0.02945098666 | BA114: 0.02939024524 | BB114: 0.02929786766 | BC114: 0.02875492378 | BD114: 0.02730079248 | BE114: 0.02664017228 | BF114: 0.02552411919 | BG114: 0
A115: % of Mortgages in London | B115: 0.2664 | C115: 0.2664 | D115: 0.2683 | E115: 0.2684 | F115: 0.2688 | G115: 0.2638 | H115: 0.2531 | I115: 0.2491 | J115: 0.2343 | K115: 0.2328 | L115: 0.2318 | M115: 0.2311 | N115: 0.2315 | O115: 0.2281 | P115: 0.2259 | Q115: 0.226 | R115: 0.2257 | S115: 0.2258 | T115: 0.2253 | U115: 0.224 | V115: 0.2236 | W115: 0.2221 | X115: 0.2235 | Y115: 0.2193 | Z115: 0.2199 | AA115: 0.2179 | AB115: 0.2173 | AC115: 0.2177 | AD115: 0.217 | AE115: 0.2158 | AF115: 0.2125 | AG115: 0.2112496814 | AH115: 0.2116574228 | AI115: 0.2121284515 | AJ115: 0.207848451 | AK115: 0.2081322889 | AL115: 0.2047035075 | AM115: 0.2005393538 | AN115: 0.1992283335 | AO115: 0.1969424884 | AP115: 0.1943816629 | AQ115: 0.1940227062 | AR115: 0.1924207203 | AS115: 0.1930508091 | AT115: 0.19204066 | AU115: 0.1926534992 | AV115: 0.1922279803 | AW115: 0.1896555722 | AX115: 0.1872882064 | AY115: 0.1837615507 | AZ115: 0.182948256 | BA115: 0.1810460554 | BB115: 0.1759666024 | BC115: 0.1763861864 | BD115: 0.176215244 | BE115: 0.1776470561 | BF115: 0.1744003939 | BG115: 0
A116: % of Mortgages in the South East | B116: 0.34 | C116: 0.3375 | D116: 0.3359 | E116: 0.3366 | F116: 0.3369 | G116: 0.3345 | H116: 0.3307 | I116: 0.33 | J116: 0.3278 | K116: 0.3265 | L116: 0.327 | M116: 0.3268 | N116: 0.3262 | O116: 0.3267 | P116: 0.3273 | Q116: 0.3261 | R116: 0.3256 | S116: 0.3245 | T116: 0.3248 | U116: 0.3244 | V116: 0.3239 | W116: 0.3225 | X116: 0.3223 | Y116: 0.3234 | Z116: 0.3219 | AA116: 0.3227 | AB116: 0.322 | AC116: 0.3217 | AD116: 0.3214 | AE116: 0.323 | AF116: 0.323 | AG116: 0.3209429287 | AH116: 0.318494973 | AI116: 0.3167417772 | AJ116: 0.3170575933 | AK116: 0.314908938 | AL116: 0.3145601722 | AM116: 0.3128337313 | AN116: 0.311367367 | AO116: 0.3103738286 | AP116: 0.3124578589 | AQ116: 0.313158171 | AR116: 0.3119192493 | AS116: 0.3106224403 | AT116: 0.3101085959 | AU116: 0.3108422347 | AV116: 0.309262484 | AW116: 0.3098549745 | AX116: 0.3101829344 | AY116: 0.3091137099 | AZ116: 0.3101452228 | BA116: 0.3096934289 | BB116: 0.3148299128 | BC116: 0.3121110375 | BD116: 0.309386434 | BE116: 0.3104697902 | BF116: 0.3121283188 | BG116: 0
A117: % of Owner Occupied Mortgages | B117: 0 | C117: 0 | D117: 0 | E117: 0 | F117: 0 | G117: 0 | H117: 0 | I117: 0 | J117: 0 | K117: 0 | L117: 0 | M117: 0 | N117: 0 | O117: 0 | P117: 0 | Q117: 0 | R117: 0 | S117: 0 | T117: 0 | U117: 0 | V117: 0 | W117: 0 | X117: 0 | Y117: 0 | Z117: 0 | AA117: 0 | AB117: 0 | AC117: 0 | AD117: 0 | AE117: 0 | AF117: 0 | AG117: 0 | AH117: 0 | AI117: 0 | AJ117: 0 | AK117: 0 | AL117: 0 | AM117: 0 | AN117: 0 | AO117: 0 | AP117: 0 | AQ117: 0 | AR117: 0 | AS117: 0 | AT117: 0 | AU117: 0 | AV117: 0 | AW117: 0 | AX117: 0 | AY117: 0 | AZ117: 0 | BA117: 0 | BB117: 0 | BC117: 0 | BD117: 0 | BE117: 0 | BF117: 0 | BG117: 0
A118: % of Investment Home Loans - Professional Landlords | B118: 0.4451 | C118: 0.4431 | D118: 0.4383 | E118: 0.436 | F118: 0.4338 | G118: 0.4377 | H118: 0.4431 | I118: 0.4483 | J118: 0.465 | K118: 0.4637 | L118: 0.4665 | M118: 0.4675 | N118: 0.4667 | O118: 0.466 | P118: 0.4672 | Q118: 0.4684 | R118: 0.4691 | S118: 0.4708 | T118: 0.4713 | U118: 0.4722 | V118: 0.4731 | W118: 0.4738 | X118: 0.4741 | Y118: 0.4739 | Z118: 0.475 | AA118: 0.477 | AB118: 0.4772 | AC118: 0.477 | AD118: 0.4778 | AE118: 0.4799 | AF118: 0.4823 | AG118: 0.4836445084 | AH118: 0.4839155732 | AI118: 0.4836287052 | AJ118: 0.488681979 | AK118: 0.490649446 | AL118: 0.4942129786 | AM118: 0.4952960021 | AN118: 0.4950732709 | AO118: 0.4962601336 | AP118: 0.4984534353 | AQ118: 0.497109768 | AR118: 0.4982445714 | AS118: 0.4977136631 | AT118: 0.4976797751 | AU118: 0.4994323955 | AV118: 0.4988248019 | AW118: 0.5037596934 | AX118: 0.5077607791 | AY118: 0.5119424866 | AZ118: 0.5124922891 | BA118: 0.5173947664 | BB118: 0.518260639 | BC118: 0.5166312362 | BD118: 0.51906304 | BE118: 0.5202107139 | BF118: 0.5172767848 | BG118: 0
A119: % of Investment Home Loans - Emerging Professional Landlords | B119: 0.5549 | C119: 0.5569 | D119: 0.5617 | E119: 0.564 | F119: 0.5662 | G119: 0.5623 | H119: 0.5569 | I119: 0.5517 | J119: 0.535 | K119: 0.5363 | L119: 0.5335 | M119: 0.5325 | N119: 0.5333 | O119: 0.534 | P119: 0.5328 | Q119: 0.5316 | R119: 0.5309 | S119: 0.5292 | T119: 0.5287 | U119: 0.5278 | V119: 0.5269 | W119: 0.5262 | X119: 0.5259 | Y119: 0.5261 | Z119: 0.525 | AA119: 0.523 | AB119: 0.5228 | AC119: 0.523 | AD119: 0.5222 | AE119: 0.5201 | AF119: 0.5177 | AG119: 0.5163554916 | AH119: 0.5160844268 | AI119: 0.5163712948 | AJ119: 0.511318021 | AK119: 0.509350554 | AL119: 0.5057870214 | AM119: 0.5047039979 | AN119: 0.5049267291 | AO119: 0.5037398664 | AP119: 0.5015465647 | AQ119: 0.502890232 | AR119: 0.5017554286 | AS119: 0.5022863369 | AT119: 0.5023202249 | AU119: 0.5005676045 | AV119: 0.5011751981 | AW119: 0.4962403066 | AX119: 0.4922392209 | AY119: 0.4880575134 | AZ119: 0.4875077109 | BA119: 0.4826052336 | BB119: 0.481739361 | BC119: 0.4833687638 | BD119: 0.48093696 | BE119: 0.4797892861 | BF119: 0.4827232152 | BG119: 0
A120: Weighted Average Interest Coverage Ratio (calculated at the origination date) | B120: 1.97 | C120: 1.96 | D120: 1.95 | E120: 1.97 | F120: 1.95 | G120: 1.95 | H120: 1.9 | I120: 1.89 | J120: 1.93 | K120: 1.94 | L120: 1.92 | M120: 1.89 | N120: 1.885 | O120: 1.875 | P120: 1.847 | Q120: 1.83 | R120: 1.83 | S120: 1.82 | T120: 1.81 | U120: 1.81 | V120: 1.79 | W120: 1.79 | X120: 1.79 | Y120: 1.79 | Z120: 1.77 | AA120: 1.76 | AB120: 1.75 | AC120: 1.77 | AD120: 1.77 | AE120: 1.77 | AF120: 1.77 | AG120: 1.767200653 | AH120: 1.763058001 | AI120: 1.752628789 | AJ120: 1.749239042 | AK120: 1.731760265 | AL120: 1.731508102 | AM120: 1.738289402 | AN120: 1.734779948 | AO120: 1.738780307 | AP120: 1.734433626 | AQ120: 1.721872271 | AR120: 1.715249901 | AS120: 1.71229592 | AT120: 1.706479878 | AU120: 1.707668752 | AV120: 1.7109843 | AW120: 1.715263724 | AX120: 1.698894345 | AY120: 1.700037726 | AZ120: 1.704296653 | BA120: 1.701528761 | BB120: 1.657342933 | BC120: 1.663019734 | BD120: 1.656941088 | BE120: 1.652289289 | BF120: 1.649236576 | BG120: 0
A121: MTL Lifetime Redemption Rate | B121: 0.0642 | C121: 0.0763 | D121: 0.0873 | E121: 0.1021 | F121: 0.1174 | G121: 0.1387 | H121: 0.1729 | I121: 0.177 | J121: 0.2135 | K121: 0.2023 | L121: 0.1895 | M121: 0.1783 | N121: 0.1684 | O121: 0.1602 | P121: 0.1538 | Q121: 0.1477 | R121: 0.1417 | S121: 0.1361 | T121: 0.1309 | U121: 0.1266 | V121: 0.1226 | W121: 0.119 | X121: 0.1151 | Y121: 0.1124 | Z121: 0.1097 | AA121: 0.107 | AB121: 0.1042 | AC121: 0.1018 | AD121: 0.1 | AE121: 0.0983 | AF121: 0.0969 | AG121: 0.0958 | AH121: 0.0948 | AI121: 0.0935 | AJ121: 0.0929 | AK121: 0.092 | AL121: 0.0917 | AM121: 0.0924 | AN121: 0.0918 | AO121: 0.0916 | AP121: 0.0914 | AQ121: 0.0908 | AR121: 0.0908 | AS121: 0.0902 | AT121: 0.0899 | AU121: 0.0895 | AV121: 0.0891 | AW121: 0.0892 | AX121: 0.0892 | AY121: 0.0892 | AZ121: 0.0891 | BA121: 0.0894 | BB121: 0.0898 | BC121: 0.09 | BD121: 0.0897 | BE121: 0.0897 | BF121: 0.0897 | BG121: 0
A122: Aggregate Potential Redraw Amount | B122: 11156976.34 | C122: 10189928.19 | D122: 9188495.02 | E122: 8383644.05 | F122: 7799712.6 | G122: 6648729.66 | H122: 6101417.58 | I122: 5761574.86 | J122: 5895710.71 | K122: 6727931.15 | L122: 5850032.3 | M122: 5919259.02 | N122: 5830096.44 | O122: 5970906.51 | P122: 5899423.89 | Q122: 5859527.86 | R122: 5528751.37 | S122: 5159102.94 | T122: 5188513.46 | U122: 5027441.25 | V122: 4726028.23 | W122: 4437881 | X122: 4298458.24 | Y122: 4050680.79 | Z122: 4038284.63 | AA122: 3978162.03 | AB122: 3923045.21 | AC122: 907262.52 | AD122: 0 | AE122: 0 | AF122: 0 | AG122: 0 | AH122: 0 | AI122: 0 | AJ122: 0 | AK122: 0 | AL122: 0 | AM122: 0 | AN122: 0 | AO122: 0 | AP122: 0 | AQ122: 0 | AR122: 0 | AS122: 0 | AT122: 0 | AU122: 0 | AV122: 0 | AW122: 0 | AX122: 0 | AY122: 0 | AZ122: 0 | BA122: 0 | BB122: 0 | BC122: 0 | BD122: 0 | BE122: 0 | BF122: 0 | BG122: 0
A123: Number of Properties in Possession | B123: 0 | C123: 0 | D123: 0 | E123: 0 | F123: 0 | G123: 0 | H123: 0 | I123: 0 | J123: 1 | K123: 1 | L123: 0 | M123: 0 | N123: 0 | O123: 0 | P123: 0 | Q123: 0 | R123: 0 | S123: 0 | T123: 0 | U123: 0 | V123: 0 | W123: 0 | X123: 0 | Y123: 1 | Z123: 0 | AA123: 0 | AB123: 0 | AC123: 0 | AD123: 0 | AE123: 0 | AF123: 0 | AG123: 0 | AH123: 0 | AI123: 0 | AJ123: 0 | AK123: 0 | AL123: 0 | AM123: 0 | AN123: 0 | AO123: 0 | AP123: 0 | AQ123: 0 | AR123: 1 | AS123: 1 | AT123: 1 | AU123: 0 | AV123: 0 | AW123: 0 | AX123: 0 | AY123: 0 | AZ123: 0 | BA123: 0 | BB123: 0 | BC123: 0 | BD123: 0 | BE123: 0 | BF123: 0 | BG123: 0
A124: Appointment of a Receiver of Rent | B124: 4 | C124: 3 | D124: 6 | E124: 3 | F124: 3 | G124: 10 | H124: 12 | I124: 18 | J124: 23 | K124: 22 | L124: 28 | M124: 29 | N124: 32 | O124: 32 | P124: 36 | Q124: 31 | R124: 29 | S124: 26 | T124: 35 | U124: 34 | V124: 37 | W124: 35 | X124: 37 | Y124: 36 | Z124: 29 | AA124: 25 | AB124: 25 | AC124: 34 | AD124: 32 | AE124: 28 | AF124: 29 | AG124: 26 | AH124: 21 | AI124: 24 | AJ124: 25 | AK124: 24 | AL124: 24 | AM124: 24 | AN124: 27 | AO124: 25 | AP124: 20 | AQ124: 16 | AR124: 16 | AS124: 16 | AT124: 15 | AU124: 12 | AV124: 12 | AW124: 11 | AX124: 10 | AY124: 10 | AZ124: 12 | BA124: 14 | BB124: 14 | BC124: 12 | BD124: 12 | BE124: 12 | BF124: 10 | BG124: 0
A125: MTL Quarterly Losses | B125: 0 | C125: 0 | D125: 4 | E125: 12 | F125: -12 | G125: -3 | H125: 0 | I125: 0 | J125: -2 | K125: 26 | L125: 7 | M125: 0 | N125: 38 | O125: 35 | P125: 69 | Q125: 115 | R125: 98 | S125: 71 | T125: 2 | U125: 9 | V125: 0 | W125: -4 | X125: -3 | Y125: -1 | Z125: 153 | AA125: 66 | AB125: 0 | AC125: 6 | AD125: 100 | AE125: 95 | AF125: 43 | AG125: 21 | AH125: -1 | AI125: 130 | AJ125: -5 | AK125: 48 | AL125: -3 | AM125: -31 | AN125: 127 | AO125: 15 | AP125: 118 | AQ125: 84 | AR125: 47 | AS125: -13 | AT125: 39 | AU125: 139 | AV125: -30 | AW125: 71 | AX125: 45 | AY125: -2 | AZ125: 56 | BA125: -4 | BB125: -1 | BC125: -28 | BD125: -99 | BE125: 1 | BF125: -12 | BG125: 0
A126: Arrears excluding Receiver of Rent and Possession Cases
A127: Performing Loans | B127: 0.9933 | C127: 0.9963 | D127: 0.9973 | E127: 0.9965 | F127: 0.9949 | G127: 0.9971 | H127: 0.9928 | I127: 0.9881 | J127: 0.9781 | K127: 0.9807 | L127: 0.9848 | M127: 0.9878 | N127: 0.989 | O127: 0.9878 | P127: 0.9893 | Q127: 0.9915 | R127: 0.9917 | S127: 0.9924 | T127: 0.9935 | U127: 0.9945 | V127: 0.9932 | W127: 0.9954 | X127: 0.9931 | Y127: 0.9966 | Z127: 0.9965 | AA127: 0.9976 | AB127: 0.9969 | AC127: 0.9987 | AD127: 0.9989 | AE127: 0.9967 | AF127: 0.9991 | AG127: 0.9955159674 | AH127: 0.996000898 | AI127: 0.9984518957 | AJ127: 0.9987712497 | AK127: 0.9987443627 | AL127: 0.9983955382 | AM127: 1 | AN127: 0.9996418007 | AO127: 0.9996336966 | AP127: 0.9985613825 | AQ127: 1 | AR127: 0.9989630095 | AS127: 1 | AT127: 0.99922246 | AU127: 0.999208619 | AV127: 0.9944864905 | AW127: 0.9926508685 | AX127: 0.990346094 | AY127: 0.9895304516 | AZ127: 0.994161608 | BA127: 0.9952303451 | BB127: 0.9971315376 | BC127: 0.9952764448 | BD127: 0.9956432526 | BE127: 0.9958666525 | BF127: 0.993716928 | BG127: 0
A128: >1 to 2 months arrears | B128: 0.0059 | C128: 0.0027 | D128: 0.0027 | E128: 0.0032 | F128: 0.0035 | G128: 0.0024 | H128: 0.005 | I128: 0.0084 | J128: 0.0115 | K128: 0.0081 | L128: 0.0065 | M128: 0.0058 | N128: 0.0073 | O128: 0.0086 | P128: 0.0066 | Q128: 0.0071 | R128: 0.0067 | S128: 0.0068 | T128: 0.0054 | U128: 0.0046 | V128: 0.006 | W128: 0.0041 | X128: 0.0051 | Y128: 0.0027 | Z128: 0.0014 | AA128: 0.002 | AB128: 0.0012 | AC128: 0.001 | AD128: 0.0004 | AE128: 0.0028 | AF128: 0.0005 | AG128: 0.003913428754 | AH128: 0.002688259457 | AI128: 0.0002877224917 | AJ128: 0.0008523970491 | AK128: 0.000277960013 | AL128: 0.001214595929 | AM128: 0 | AN128: 0.0003581992727 | AO128: 0 | AP128: 0.0009356666464 | AQ128: 0 | AR128: 0.001036990496 | AS128: 0 | AT128: 0.0007775400007 | AU128: 0 | AV128: 0.003850742178 | AW128: 0.006524848231 | AX128: 0.004759308735 | AY128: 0.005490502288 | AZ128: 0.002175900819 | BA128: 0.002074159789 | BB128: 0.001737220675 | BC128: 0.002238788762 | BD128: 0.0002543653921 | BE128: 0.002554891639 | BF128: 0.001063557805 | BG128: 0
A129: >2 to 3 months arrears | B129: 0.0008 | C129: 0.0009 | D129: 0 | E129: 0.0003 | F129: 0.0008 | G129: 0.0002 | H129: 0.0019 | I129: 0.0031 | J129: 0.0075 | K129: 0.0076 | L129: 0.0053 | M129: 0.0021 | N129: 0.0021 | O129: 0.0026 | P129: 0.003 | Q129: 0.0003 | R129: 0.0008 | S129: 0 | T129: 0.0003 | U129: 0.0005 | V129: 0.0005 | W129: 0 | X129: 0.0014 | Y129: 0.0004 | Z129: 0.0017 | AA129: 0 | AB129: 0.0015 | AC129: 0 | AD129: 0.0001 | AE129: 0.0001 | AF129: 0 | AG129: 0.0002114465492 | AH129: 0.0009467004952 | AI129: 0.0005756351701 | AJ129: 0 | AK129: 0 | AL129: 0 | AM129: 0 | AN129: 0 | AO129: 0.0003663033979 | AP129: 0 | AQ129: 0 | AR129: 0 | AS129: 0 | AT129: 0 | AU129: 0 | AV129: 0.0008572631484 | AW129: 0 | AX129: 0.001463982258 | AY129: 0.003195914904 | AZ129: 0.00219129842 | BA129: 0.000538310902 | BB129: 0.0005546344552 | BC129: 0.002484766461 | BD129: 0.004102382032 | BE129: 0.0006561489095 | BF129: 0.003363500469 | BG129: 0
A130: >3 months arrears | B130: 0 | C130: 0.0001 | D130: 0 | E130: 0 | F130: 0.0008 | G130: 0.0003 | H130: 0.0003 | I130: 0.0004 | J130: 0.0029 | K130: 0.0036 | L130: 0.0034 | M130: 0.0043 | N130: 0.0016 | O130: 0.001 | P130: 0.0011 | Q130: 0.0011 | R130: 0.0008 | S130: 0.0008 | T130: 0.0008 | U130: 0.0004 | V130: 0.0003 | W130: 0.0005 | X130: 0.0004 | Y130: 0.0003 | Z130: 0.0004 | AA130: 0.0004 | AB130: 0.0004 | AC130: 0.0003 | AD130: 0.0006 | AE130: 0.0004 | AF130: 0.0004 | AG130: 0.0003591573401 | AH130: 0.0003641420412 | AI130: 0.0006847466833 | AJ130: 0.0003763532748 | AK130: 0.000977677248 | AL130: 0.0003898658523 | AM130: 0 | AN130: 0 | AO130: 0 | AP130: 0.0005029508984 | AQ130: 0 | AR130: 0 | AS130: 0 | AT130: 0 | AU130: 0.0007913810114 | AV130: 0.0008055042081 | AW130: 0.0008242832578 | AX130: 0.003430615036 | AY130: 0.001783131181 | AZ130: 0.001471192775 | BA130: 0.00215718418 | BB130: 0.0005766072514 | BC130: 0 | BD130: 0 | BE130: 0.0009223069705 | BF130: 0.001856013775 | BG130: 0
A131: Total | B131: =SUM(B127:B130) -> 1 | C131: 1 | D131: 1 | E131: 1 | F131: 1 | G131: 1 | H131: 1 | I131: 1 | J131: 1 | K131: 1 | L131: 1 | M131: 1 | N131: 1 | O131: 1 | P131: 1 | Q131: 1 | R131: 1 | S131: 1 | T131: 1 | U131: 1 | V131: =SUM(V127:V130) -> 1 | W131: 1 | X131: 1 | Y131: 1 | Z131: 1 | AA131: 1 | AB131: =SUM(AB127:AB130) -> 1 | AC131: 1 | AD131: 1 | AE131: 1 | AF131: 1 | AG131: 1 | AH131: 1 | AI131: 1 | AJ131: 1 | AK131: 1 | AL131: 1 | AM131: 1 | AN131: 1 | AO131: 1 | AP131: 1 | AQ131: 1 | AR131: 1 | AS131: 1 | AT131: 1 | AU131: 1 | AV131: 1 | AW131: 1 | AX131: 1 | AY131: 1 | AZ131: 1 | BA131: 1 | BB131: 1 | BC131: 1 | BD131: 1 | BE131: 1 | BF131: 1 | BG131: =SUM(BG127:BG130) -> 0

Sheet Graphs
N2: PARAGON MORTGAGES (NO.13) PLC
